{"text_format":"1","workbook":"xlsx","n_sheets":22,"sheets":["Instructions","base_summary","Building Settings","base_w","base_e","base_f","CO2 Reading for Upload","CO2 Readings","TVOC Reading for Upload","TVOC Readings","Waste Stream","Carbon Monoxide","Ozone","Atmospheric Particulate Matter","Acetaldehyde","Benzene","Styrene","Toluene","Naphthalene ","Dichlorobenzene","Xylenes-total","Formaldehyde"],"not_rendered":{"charts":0,"images":0,"macros":1,"external_links":0,"defined_names":399,"comments":1,"pivot_tables":0},"unopened":[],"bounds":{"document_bytes":16777216,"sheet_cells":100000,"rows_first":2000,"rows_last":500,"rows_between":2000,"halvings":0,"cell_chars":16384,"cell_head_chars":4096},"cells_cut":0,"cells_raw":0,"read":"whole","date_system":"1900"}

{"sheet":"Instructions","index":0,"n_rows":343,"n_cols":19,"rows_kept":343,"cut":false,"hidden":false,"merged":[[30,2,30,5],[11,2,11,4],[2,2,2,5],[25,3,25,5],[26,3,26,5],[3,2,3,5],[14,2,14,5],[46,2,46,5],[48,2,48,5],[50,2,50,5],[44,2,44,5],[36,2,36,5]]}
["$",null,null,null,"ARC"]
[null,null,"Approved LEED Dynamic Plaque -V01"]
[null,null,"Performance Data Upload Calculator\nfor Buildings and Spaces"]
[null,null,"Use this calculator to upload data into the platform. To ensure proper upload, refer to detailed steps below and the "]
[null,null,"Step 1."]
[null,null,"Enable macros",null,null,null,null,null,null,null,null,null,"Ip Units"]
[null,null,"Note: This calculator is for use with Excel for Mac 2011 and Excel 2007 or later.",null,null,null,null,null,null,null,null,null,"Si Units"]
[]
[null,null,"Step 2."]
[null,null,"Unit of measurement",null,null,"IP units (feet)"]
[null,null,"Note: This selection must match the unit of measurement chosen during project registration."]
[null,null,"Year Built"]
[]
[null,null,"Step 3. "]
[null,null,"Select the data you would like to upload. Note: the data must not conflict or overlap with data already in the platform "]
[]
[null,null,null,"Building Settings (Project size, occupants, and operating hours)"]
[]
[]
[null,null,null,"Energy - Electricity"]
[null,null,null,"Energy - Other fuels"]
[null,null,null,"Water"]
[null,null,null,"Waste"]
[null,null,null,"Human Experience - CO2"]
[null,null,null,"Human Experience - TVOC"]
[null,null,null,"Human Experience - Inorganic contaminants (Carbon Monoxide (CO), Ozone (O3), Particulate Matter 2.5 (PM2.5))"]
[null,null,null,"Human Experience - Volatile organic compounds (Acetaldehyde, Benzene, Styrene, Toluene, Naphthalene, Dichlorobenzene, Xylenes-total, Formaldehyde)"]
[]
[]
[null,null,"Step 4. "]
[null,null,"Please provide the required information for all the meters. Please note that if the platform already has  \t\t\ndata for the overlapping dates, the data from the template will not update the overlapping data. To \t\t\nupload such readings, the data should be deleted from the platform by clicking the delete button next \t\t\nto those readings.  If the entire meter has to be updated, the better way is delete the entire meter by\t\t\nclicking the delete meter button under the details tab of the meter."]
[]
[]
[]
[]
[null,null,"Step 5."]
[null,null,"Upload the completed file to the platform. Note: After we accept your file, we will scan it for errors and enter your data into the platform. You will receive a report explaining that all of your data were successfully entered into the platform or that all or some of your data could not be entered into the platform (Learn about avoiding error messages "]
[null,null,null,null,null,null,null,null,null,null,null,"Aland Islands","AX",null,"Water",null,"Water",null,"Airport: Control Tower"]
[null,null,null,null,null,null,null,null,null,null,null,"Albania","AL",null,"Other Fuels",null,"Other Fuels",null,"Airport: Distribution Center"]
[null,null,null,null,null,null,null,null,null,null,null,"Algeria","DZ",null,"Waste",null,null,null,"Airport: Hangar"]
[null,null,null,null,null,null,null,null,null,null,null,null,null,null,null,null,null,null,"Airport: Office"]
[null,null,"Definitions",null,null,null,null,null,null,null,null,null,null,null,null,null,null,null,"Airport: Other"]
[null,null,null,null,null,null,null,null,null,null,null,null,null,null,null,null,null,null,"Airport: Public Order/Fire/Police"]
[null,null,"Gross Floor Area",null,null,null,null,null,null,null,null,null,null,null,null,null,null,null,"Airport: Rental Car Center"]
[null,null,"Include basements, mezzanine and intermediate-floored tiers, and penthouses with headroom height of 7.5 ft (2.2 meters) or greater. Exclude non-enclosed (or non-enclosable) roofed-over areas, such as exterior covered walkways, porches, terraces or steps, roof overhangs, and similar features. Excludes air shafts, pipe trenches, chimneys and floor area dedicated to the parking and circulation of motor vehicles.\r\n\r\nFloor area calculations are taken from the exterior faces of exterior walls OR from the centerline of walls separating buildings, OR (for Interiors projects) from the centerline of walls separating spaces. ",null,null,null,null,null,null,null,null,null,null,null,null,null,null,null,"Airport: Terminal/Concourse"]
[null,null,"Weekly Operating hours ",null,null,null,null,null,null,null,null,null,null,null,null,null,null,null,"Airport: Vehicle Service/Repair"]
[null,null,"Your weekly operating hours are the total number of hours per week where most of the building occupants are present and/or when the building is typically open for operation.\r\n\r\n24/7 operation = 168 hours\r\n",null,null,null,null,null,null,null,null,null,null,null,null,null,null,null,"Circulation Space"]
[null,null,"Regular Building Occupants",null,null,null,null,null,null,null,null,null,null,null,null,null,null,null,"Core Learning Space: College/University"]
[null,null,"Regular building occupants are habitual users of the building (Examples are:  employees or staff, volunteers who regularly use the building, residents including residents of a dormitory, primary and secondary school students, hotel guests, and inpatients.) \n\nEnter a daily, time-weighted average: the typical number of occupants in the space at any given time. Count full time employees based on a standard eight-hour occupancy period.  Ensure part time employee hours are included in the total count as appropriate. For example: employees = sum of all employee hours in a 24 hour period / 8",null,null,null,null,null,null,null,null,null,null,null,null,null,null,null,"Core Learning Space: K-12 Elementary/Middle School"]
[null,null,"Visitors",null,null,null,null,null,null,null,null,null,null,null,null,null,null,null,"Core Learning Space: K-12 High School"]
[null,null,"Visitors (also called “transients”) intermittently use the building. (Examples are: retail customers, outpatients, volunteers who periodically use the building, and higher-education students.)",null,null,null,null,null,null,null,null,null,null,null,null,null,null,null,"Core Learning Space: Other classroom education"]
[null,null,null,null,null,null,null,null,null,null,null,null,null,null,null,null,null,null,"Core Learning Space: Preschool/Daycare"]
[null,null,null,null,null,null,null,null,null,null,null,null,null,null,null,null,null,null,"Data Center"]
[null,null,null,null,null,null,null,null,null,null,null,"American Samoa","AS",null,"CO2",null,null,null,"Healthcare: Clinic/Other Outpatient"]
[null,null,null,null,null,"Building",null,null,null,null,"v4.6.1","Andorra","AD",null,"VOCs",null,null,null,"Healthcare: Inpatient"]
[null,null,null,null,null,null,null,null,null,null,"Copyright © 2020","Angola","AO",null,null,null,null,null,"Healthcare: Nursing Home/ Assisted Living"]
[null,null,null,null,null,null,null,null,null,null,"GBCI","Anguilla","AI",null,null,null,null,null,"Healthcare: Outpatient Office (Diagnostic)"]
[null,null,null,null,null,null,null,null,null,null,"All Rights Reserved","Antarctica","AQ",null,null,null,null,null,"Industrial Manufacturing"]
[null,null,null,null,null,"Sub Building template",null,null,null,null,"v4.6","Antigua And Barbuda","AG",null,null,null,null,null,"Laboratory"]
[null,null,null,null,null,null,null,null,null,null,null,"Argentina","AR",null,null,null,null,null,"Lodging: Dormitory"]
[null,null,null,null,null,null,null,null,null,null,null,"Armenia","AM",null,null,null,null,null,"Lodging: Hotel/Motel/Resort Full Service"]
[null,null,null,null,null,null,null,null,null,null,null,"Aruba","AW",null,null,null,null,null,"Lodging: Hotel/Motel/Resort Limited Service"]
[null,null,null,null,null,null,null,null,null,null,null,"Australia","AU",null,null,null,null,null,"Lodging: Hotel/Motel/Resort Select Service"]
[null,null,null,null,null,null,null,null,null,null,null,"Austria","AT",null,null,null,null,null,"Lodging: Inn"]
[null,null,null,null,null,null,null,null,null,null,null,"Azerbaijan","AZ",null,null,null,null,null,"Lodging: Other lodging"]
[null,null,null,null,null,null,null,null,null,null,null,"Bahamas","BS",null,null,null,null,null,"Multi-Family Residential: Apartment"]
[null,null,null,null,null,null,null,null,null,null,null,"Bahrain","BH",null,null,null,null,null,"Multi-Family Residential: Condominium"]
[null,null,null,null,null,null,null,null,null,null,null,"Bangladesh","BD",null,null,null,null,null,"Multi-Family Residential: Lowrise"]
[null,null,null,null,null,null,null,null,null,null,null,"Barbados","BB",null,null,null,null,null,"Office: Administrative/Professional"]
[null,null,null,null,null,null,null,null,null,null,null,"Belarus","BY",null,null,null,null,null,"Office: Financial"]
[null,null,null,null,null,null,null,null,null,null,null,"Belgium","BE",null,null,null,null,null,"Office: Government"]
[null,null,null,null,null,null,null,null,null,null,null,"Belize","BZ",null,null,null,null,null,"Office: Medical (Non-Diagnostic)"]
[null,null,null,null,null,null,null,null,null,null,null,"Benin","BJ",null,null,null,null,null,"Office: Mixed-Use"]
[null,null,null,null,null,null,null,null,null,null,null,"Bermuda","BM",null,null,null,null,null,"Office: Other Office"]
[null,null,null,null,null,null,null,null,null,null,null,"Bhutan","BT",null,null,null,null,null,"Public Assembly: Convention Center"]
[null,null,null,null,null,null,null,null,null,null,null,"Bolivia","BO",null,null,null,null,null,"Public Assembly: Entertainment"]
[null,null,null,null,null,null,null,null,null,null,null,"Bosnia And Herzegovina","BA",null,null,null,null,null,"Public Assembly: Library"]
[null,null,null,null,null,null,null,null,null,null,null,"Botswana","BW",null,null,null,null,null,"Public Assembly: Museum"]
[null,null,null,null,null,null,null,null,null,null,null,"Bouvet Island","BV",null,null,null,null,null,"Public Assembly: Other Assembly"]
[null,null,null,null,null,null,null,null,null,null,null,"Brazil","BR",null,null,null,null,null,"Public Assembly: Recreation"]
[null,null,null,null,null,null,null,null,null,null,null,"British Indian Ocean Territory","IO",null,null,null,null,null,"Public Assembly: Social/Meeting"]
[null,null,null,null,null,null,null,null,null,null,null,"Brunei Darussalam","BN",null,null,null,null,null,"Public Assembly: Stadium/Arena"]
[null,null,null,null,null,null,null,null,null,null,null,"Bulgaria","BG",null,null,null,null,null,"Public Order and Safety: Fire/Police Station"]
[null,null,null,null,null,null,null,null,null,null,null,"Burkina Faso","BF",null,null,null,null,null,"Public Order and Safety: Other Public Order"]
[null,null,null,null,null,null,null,null,null,null,null,"Burundi","BI",null,null,null,null,null,"Religious Worship"]
[null,null,null,null,null,null,null,null,null,null,null,"Cambodia","KH",null,null,null,null,null,"Retail: Bank Branch"]
[null,null,null,null,null,null,null,null,null,null,null,"Cameroon","CM",null,null,null,null,null,"Retail: Convenience Store"]
[null,null,null,null,null,null,null,null,null,null,null,"Canada","CA",null,null,null,null,null,"Retail: Enclosed Mall"]
[null,null,null,null,null,null,null,null,null,null,null,"Cape Verde","CV",null,null,null,null,null,"Retail: Fast Food"]
[null,null,null,null,null,null,null,null,null,null,null,"Cayman Islands","KY",null,null,null,null,null,"Retail: Grocery Store/Food Market"]
[null,null,null,null,null,null,null,null,null,null,null,"Central African Republic","CF",null,null,null,null,null,"Retail: Open Shopping Center"]
[null,null,null,null,null,null,null,null,null,null,null,"Chad","TD",null,null,null,null,null,"Retail: Other Retail"]
[null,null,null,null,null,null,null,null,null,null,null,"Chile","CL",null,null,null,null,null,"Retail: Restaurant/Cafeteria"]
[null,null,null,null,null,null,null,null,null,null,null,"China","CN",null,null,null,null,null,"Retail: Vehicle Dealership"]
[null,null,null,null,null,null,null,null,null,null,null,"Christmas Island","CX",null,null,null,null,null,"Service: Other Service"]
[null,null,null,null,null,null,null,null,null,null,null,"Cocos (Keeling) Islands","CC",null,null,null,null,null,"Service: Post Office/Postal Center"]
[null,null,null,null,null,null,null,null,null,null,null,"Colombia","CO",null,null,null,null,null,"Service: Repair Shop"]
[null,null,null,null,null,null,null,null,null,null,null,"Comoros","KM",null,null,null,null,null,"Service: Vehicle Service/Repair"]
[null,null,null,null,null,null,null,null,null,null,null,"Congo","CG",null,null,null,null,null,"Service: Vehicle Storage/Maintenance"]
[null,null,null,null,null,null,null,null,null,null,null,"Congo, The Democratic Republic Of The","CD",null,null,null,null,null,"Single family home (attached)"]
[null,null,null,null,null,null,null,null,null,null,null,"Cook Islands","CK",null,null,null,null,null,"Single family home (detached)"]
[null,null,null,null,null,null,null,null,null,null,null,"Costa Rica","CR",null,null,null,null,null,"Transit: Depot"]
[null,null,null,null,null,null,null,null,null,null,null,"Cote D'Ivoire","CI",null,null,null,null,null,"Transit: Line"]
[null,null,null,null,null,null,null,null,null,null,null,"Croatia","HR",null,null,null,null,null,"Transit: Maintenance/Storage"]
[null,null,null,null,null,null,null,null,null,null,null,"Cuba","CU",null,null,null,null,null,"Transit: Office"]
[null,null,null,null,null,null,null,null,null,null,null,"Cyprus","CY",null,null,null,null,null,"Transit: Other"]
[null,null,null,null,null,null,null,null,null,null,null,"Czech Republic","CZ",null,null,null,null,null,"Transit: Station"]
[null,null,null,null,null,null,null,null,null,null,null,"Denmark","DK",null,null,null,null,null,"Transit: Station/Elevated"]
[null,null,null,null,null,null,null,null,null,null,null,"Djibouti","DJ",null,null,null,null,null,"Transit: Station/Open Air Ground Level"]
[null,null,null,null,null,null,null,null,null,null,null,"Dominica","DM",null,null,null,null,null,"Transit: Station/Underground"]
[null,null,null,null,null,null,null,null,null,null,null,"Dominican Republic","DO",null,null,null,null,null,"Transit: System"]
[null,null,null,null,null,null,null,null,null,null,null,"Ecuador","EC",null,null,null,null,null,"Warehouse: Nonrefrigerated Distribution/Shipping"]
[null,null,null,null,null,null,null,null,null,null,null,"Egypt","EG",null,null,null,null,null,"Warehouse: Refrigerated"]
[null,null,null,null,null,null,null,null,null,null,null,"El Salvador","SV",null,null,null,null,null,"Warehouse: Self Storage Units"]
[null,null,null,null,null,null,null,null,null,null,null,"Equatorial Guinea","GQ",null,null,null,null,null,"Warehouse: General"]
[null,null,null,null,null,null,null,null,null,null,null,"Eritrea","ER",null,null,null,null,null,"Other"]
[null,null,null,null,null,null,null,null,null,null,null,"Estonia","EE"]
[null,null,null,null,null,null,null,null,null,null,null,"Ethiopia","ET"]
[null,null,null,null,null,null,null,null,null,null,null,"Falkland Islands (Malvinas)","FK"]
[null,null,null,null,null,null,null,null,null,null,null,"Faroe Islands","FO"]
[null,null,null,null,null,null,null,null,null,null,null,"Fiji","FJ"]
[null,null,null,null,null,null,null,null,null,null,null,"Finland","FI"]
[null,null,null,null,null,null,null,null,null,null,null,"France","FR"]
[null,null,null,null,null,null,null,null,null,null,null,"French Guiana","GF"]
[null,null,null,null,null,null,null,null,null,null,null,"French Polynesia","PF"]
[null,null,null,null,null,null,null,null,null,null,null,"French Southern Territories","TF"]
[null,null,null,null,null,null,null,null,null,null,null,"Gabon","GA"]
[null,null,null,null,null,null,null,null,null,null,null,"Gambia","GM"]
[null,null,null,null,null,null,null,null,null,null,null,"Georgia","GE"]
[null,null,null,null,null,null,null,null,null,null,null,"Germany","DE"]
[null,null,null,null,null,null,null,null,null,null,null,"Ghana","GH"]
[null,null,null,null,null,null,null,null,null,null,null,"Gibraltar","GI"]
[null,null,null,null,null,null,null,null,null,null,null,"Greece","GR"]
[null,null,null,null,null,null,null,null,null,null,null,"Greenland","GL"]
[null,null,null,null,null,null,null,null,null,null,null,"Grenada","GD"]
[null,null,null,null,null,null,null,null,null,null,null,"Guadeloupe","GP"]
[null,null,null,null,null,null,null,null,null,null,null,"Guam","GU"]
[null,null,null,null,null,null,null,null,null,null,null,"Guatemala","GT"]
[null,null,null,null,null,null,null,null,null,null,null,"Guernsey"," GG"]
[null,null,null,null,null,null,null,null,null,null,null,"Guinea","GN"]
[null,null,null,null,null,null,null,null,null,null,null,"Guinea-Bissau","GW"]
[null,null,null,null,null,null,null,null,null,null,null,"Guyana","GY"]
[null,null,null,null,null,null,null,null,null,null,null,"Haiti","HT"]
[null,null,null,null,null,null,null,null,null,null,null,"Heard Island And Mcdonald Islands","HM"]
[null,null,null,null,null,null,null,null,null,null,null,"Holy See (Vatican City State)","VA"]
[null,null,null,null,null,null,null,null,null,null,null,"Honduras","HN"]
[null,null,null,null,null,null,null,null,null,null,null,"Hong Kong","HK"]
[null,null,null,null,null,null,null,null,null,null,null,"Hungary","HU"]
[null,null,null,null,null,null,null,null,null,null,null,"Iceland","IS"]
[null,null,null,null,null,null,null,null,null,null,null,"India","IN"]
[null,null,null,null,null,null,null,null,null,null,null,"Indonesia","ID"]
[null,null,null,null,null,null,null,null,null,null,null,"Iran, Islamic Republic Of","IR"]
[null,null,null,null,null,null,null,null,null,null,null,"Iraq","IQ"]
[null,null,null,null,null,null,null,null,null,null,null,"Ireland","IE"]
[null,null,null,null,null,null,null,null,null,null,null,"Isle Of Man","IM"]
[null,null,null,null,null,null,null,null,null,null,null,"Israel","IL"]
[null,null,null,null,null,null,null,null,null,null,null,"Italy","IT"]
[null,null,null,null,null,null,null,null,null,null,null,"Jamaica","JM"]
[null,null,null,null,null,null,null,null,null,null,null,"Japan","JP"]
[null,null,null,null,null,null,null,null,null,null,null,"Jersey","JE"]
[null,null,null,null,null,null,null,null,null,null,null,"Jordan","JO"]
[null,null,null,null,null,null,null,null,null,null,null,"Kazakhstan","KZ"]
[null,null,null,null,null,null,null,null,null,null,null,"Kenya","KE"]
[null,null,null,null,null,null,null,null,null,null,null,"Kiribati","KI"]
[null,null,null,null,null,null,null,null,null,null,null,"Korea, Democratic People'S Republic Of","KP"]
[null,null,null,null,null,null,null,null,null,null,null,"Korea, Republic Of","KR"]
[null,null,null,null,null,null,null,null,null,null,null,"Kuwait","KW"]
[null,null,null,null,null,null,null,null,null,null,null,"Kyrgyzstan","KG"]
[null,null,null,null,null,null,null,null,null,null,null,"Lao People'S Democratic Republic","LA"]
[null,null,null,null,null,null,null,null,null,null,null,"Latvia","LV"]
[null,null,null,null,null,null,null,null,null,null,null,"Lebanon","LB"]
[null,null,null,null,null,null,null,null,null,null,null,"Lesotho","LS"]
[null,null,null,null,null,null,null,null,null,null,null,"Liberia","LR"]
[null,null,null,null,null,null,null,null,null,null,null,"Libyan Arab Jamahiriya","LY"]
[null,null,null,null,null,null,null,null,null,null,null,"Liechtenstein","LI"]
[null,null,null,null,null,null,null,null,null,null,null,"Lithuania","LT"]
[null,null,null,null,null,null,null,null,null,null,null,"Luxembourg","LU"]
[null,null,null,null,null,null,null,null,null,null,null,"Macao","MO"]
[null,null,null,null,null,null,null,null,null,null,null,"Macedonia, The Former Yugoslav Republic Of","MK"]
[null,null,null,null,null,null,null,null,null,null,null,"Madagascar","MG"]
[null,null,null,null,null,null,null,null,null,null,null,"Malawi","MW"]
[null,null,null,null,null,null,null,null,null,null,null,"Malaysia","MY"]
[null,null,null,null,null,null,null,null,null,null,null,"Maldives","MV"]
[null,null,null,null,null,null,null,null,null,null,null,"Mali","ML"]
[null,null,null,null,null,null,null,null,null,null,null,"Malta","MT"]
[null,null,null,null,null,null,null,null,null,null,null,"Marshall Islands","MH"]
[null,null,null,null,null,null,null,null,null,null,null,"Martinique","MQ"]
[null,null,null,null,null,null,null,null,null,null,null,"Mauritania","MR"]
[null,null,null,null,null,null,null,null,null,null,null,"Mauritius","MU"]
[null,null,null,null,null,null,null,null,null,null,null,"Mayotte","YT"]
[null,null,null,null,null,null,null,null,null,null,null,"Mexico","MX"]
[null,null,null,null,null,null,null,null,null,null,null,"Micronesia, Federated States Of","FM"]
[null,null,null,null,null,null,null,null,null,null,null,"Moldova, Republic Of","MD"]
[null,null,null,null,null,null,null,null,null,null,null,"Monaco","MC"]
[null,null,null,null,null,null,null,null,null,null,null,"Mongolia","MN"]
[null,null,null,null,null,null,null,null,null,null,null,"Montserrat","MS"]
[null,null,null,null,null,null,null,null,null,null,null,"Morocco","MA"]
[null,null,null,null,null,null,null,null,null,null,null,"Mozambique","MZ"]
[null,null,null,null,null,null,null,null,null,null,null,"Myanmar","MM"]
[null,null,null,null,null,null,null,null,null,null,null,"Namibia","NA"]
[null,null,null,null,null,null,null,null,null,null,null,"Nauru","NR"]
[null,null,null,null,null,null,null,null,null,null,null,"Nepal","NP"]
[null,null,null,null,null,null,null,null,null,null,null,"Netherlands","NL"]
[null,null,null,null,null,null,null,null,null,null,null,"Netherlands Antilles","AN"]
[null,null,null,null,null,null,null,null,null,null,null,"New Caledonia","NC"]
[null,null,null,null,null,null,null,null,null,null,null,"New Zealand","NZ"]
[null,null,null,null,null,null,null,null,null,null,null,"Nicaragua","NI"]
[null,null,null,null,null,null,null,null,null,null,null,"Niger","NE"]
[null,null,null,null,null,null,null,null,null,null,null,"Nigeria","NG"]
[null,null,null,null,null,null,null,null,null,null,null,"Niue","NU"]
[null,null,null,null,null,null,null,null,null,null,null,"Norfolk Island","NF"]
[null,null,null,null,null,null,null,null,null,null,null,"Northern Mariana Islands","MP"]
[null,null,null,null,null,null,null,null,null,null,null,"Norway","NO"]
[null,null,null,null,null,null,null,null,null,null,null,"Oman","OM"]
[null,null,null,null,null,null,null,null,null,null,null,"Pakistan","PK"]
[null,null,null,null,null,null,null,null,null,null,null,"Palau","PW"]
[null,null,null,null,null,null,null,null,null,null,null,"Palestinian Territory, Occupied","PS"]
[null,null,null,null,null,null,null,null,null,null,null,"Panama","PA"]
[null,null,null,null,null,null,null,null,null,null,null,"Papua New Guinea","PG"]
[null,null,null,null,null,null,null,null,null,null,null,"Paraguay","PY"]
[null,null,null,null,null,null,null,null,null,null,null,"Peru","PE"]
[null,null,null,null,null,null,null,null,null,null,null,"Philippines","PH"]
[null,null,null,null,null,null,null,null,null,null,null,"Pitcairn","PN"]
[null,null,null,null,null,null,null,null,null,null,null,"Poland","PL"]
[null,null,null,null,null,null,null,null,null,null,null,"Portugal","PT"]
[null,null,null,null,null,null,null,null,null,null,null,"Puerto Rico","PR"]
[null,null,null,null,null,null,null,null,null,null,null,"Qatar","QA"]
[null,null,null,null,null,null,null,null,null,null,null,"Reunion","RE"]
[null,null,null,null,null,null,null,null,null,null,null,"Romania","RO"]
[null,null,null,null,null,null,null,null,null,null,null,"Russian Federation","RU"]
[null,null,null,null,null,null,null,null,null,null,null,"Rwanda","RW"]
[null,null,null,null,null,null,null,null,null,null,null,"Saint Helena","SH"]
[null,null,null,null,null,null,null,null,null,null,null,"Saint Kitts And Nevis","KN"]
[null,null,null,null,null,null,null,null,null,null,null,"Saint Lucia","LC"]
[null,null,null,null,null,null,null,null,null,null,null,"Saint Pierre And Miquelon","PM"]
[null,null,null,null,null,null,null,null,null,null,null,"Saint Vincent And The Grenadines","VC"]
[null,null,null,null,null,null,null,null,null,null,null,"Samoa","WS"]
[null,null,null,null,null,null,null,null,null,null,null,"San Marino","SM"]
[null,null,null,null,null,null,null,null,null,null,null,"Sao Tome And Principe","ST"]
[null,null,null,null,null,null,null,null,null,null,null,"Saudi Arabia","SA"]
[null,null,null,null,null,null,null,null,null,null,null,"Senegal","SN"]
[null,null,null,null,null,null,null,null,null,null,null,"Serbia And Montenegro","CS"]
[null,null,null,null,null,null,null,null,null,null,null,"Seychelles","SC"]
[null,null,null,null,null,null,null,null,null,null,null,"Sierra Leone","SL"]
[null,null,null,null,null,null,null,null,null,null,null,"Singapore","SG"]
[null,null,null,null,null,null,null,null,null,null,null,"Slovakia","SK"]
[null,null,null,null,null,null,null,null,null,null,null,"Slovenia","SI"]
[null,null,null,null,null,null,null,null,null,null,null,"Solomon Islands","SB"]
[null,null,null,null,null,null,null,null,null,null,null,"Somalia","SO"]
[null,null,null,null,null,null,null,null,null,null,null,"South Africa","ZA"]
[null,null,null,null,null,null,null,null,null,null,null,"South Georgia And The South Sandwich Islands","GS"]
[null,null,null,null,null,null,null,null,null,null,null,"Spain","ES"]
[null,null,null,null,null,null,null,null,null,null,null,"Sri Lanka","LK"]
[null,null,null,null,null,null,null,null,null,null,null,"Sudan","SD"]
[null,null,null,null,null,null,null,null,null,null,null,"Suriname","SR"]
[null,null,null,null,null,null,null,null,null,null,null,"Svalbard And Jan Mayen","SJ"]
[null,null,null,null,null,null,null,null,null,null,null,"Swaziland","SZ"]
[null,null,null,null,null,null,null,null,null,null,null,"Sweden","SE"]
[null,null,null,null,null,null,null,null,null,null,null,"Switzerland","CH"]
[null,null,null,null,null,null,null,null,null,null,null,"Syrian Arab Republic","SY"]
[null,null,null,null,null,null,null,null,null,null,null,"Taiwan, Province Of China","TW"]
[null,null,null,null,null,null,null,null,null,null,null,"Tajikistan","TJ"]
[null,null,null,null,null,null,null,null,null,null,null,"Tanzania, United Republic Of","TZ"]
[null,null,null,null,null,null,null,null,null,null,null,"Thailand","TH"]
[null,null,null,null,null,null,null,null,null,null,null,"Timor-Leste","TL"]
[null,null,null,null,null,null,null,null,null,null,null,"Togo","TG"]
[null,null,null,null,null,null,null,null,null,null,null,"Tokelau","TK"]
[null,null,null,null,null,null,null,null,null,null,null,"Tonga","TO"]
[null,null,null,null,null,null,null,null,null,null,null,"Trinidad And Tobago","TT"]
[null,null,null,null,null,null,null,null,null,null,null,"Tunisia","TN"]
[null,null,null,null,null,null,null,null,null,null,null,"Turkey","TR"]
[null,null,null,null,null,null,null,null,null,null,null,"Turkmenistan","TM"]
[null,null,null,null,null,null,null,null,null,null,null,"Turks And Caicos Islands","TC"]
[null,null,null,null,null,null,null,null,null,null,null,"Tuvalu","TV"]
[null,null,null,null,null,null,null,null,null,null,null,"Uganda","UG"]
[null,null,null,null,null,null,null,null,null,null,null,"Ukraine","UA"]
[null,null,null,null,null,null,null,null,null,null,null,"United Arab Emirates","AE"]
[null,null,null,null,null,null,null,null,null,null,null,"United Kingdom","GB"]
[null,null,null,null,null,null,null,null,null,null,null,"United States","US"]
[null,null,null,null,null,null,null,null,null,null,null,"United States Minor Outlying Islands","UM"]
[null,null,null,null,null,null,null,null,null,null,null,"Uruguay","UY"]
[null,null,null,null,null,null,null,null,null,null,null,"Uzbekistan","UZ"]
[null,null,null,null,null,null,null,null,null,null,null,"Vanuatu","VU"]
[null,null,null,null,null,null,null,null,null,null,null,"Venezuela","VE"]
[null,null,null,null,null,null,null,null,null,null,null,"Viet Nam","VN"]
[null,null,null,null,null,null,null,null,null,null,null,"Virgin Islands, British","VG"]
[null,null,null,null,null,null,null,null,null,null,null,"Virgin Islands, U.S.","VI"]
[null,null,null,null,null,null,null,null,null,null,null,"Wallis And Futuna","WF"]
[null,null,null,null,null,null,null,null,null,null,null,"Western Sahara","EH"]
[null,null,null,null,null,null,null,null,null,null,null,"Yemen","YE"]
[null,null,null,null,null,null,null,null,null,null,null,"Zambia","ZM"]
[null,null,null,null,null,null,null,null,null,null,null,"Zimbabwe","ZW"]
[null,null,null,null,null,null,null,null,null,null,null,"(Not Specified)","ZZ"]
[]
[null,null,null,null,null,null,null,null,null,null,null,"Meter Types"]
[null,null,null,null,null,null,null,null,null,null,null,"Coal (anthracite)"]
[null,null,null,null,null,null,null,null,null,null,null,"Coal (bituminous)"]
[null,null,null,null,null,null,null,null,null,null,null,"Coke"]
[null,null,null,null,null,null,null,null,null,null,null,"Diesel"]
[null,null,null,null,null,null,null,null,null,null,null,"District Chilled Water- Absorption Chiller Using Natural Gas"]
[null,null,null,null,null,null,null,null,null,null,null,"District Chilled Water- Electric Driven Chiller"]
[null,null,null,null,null,null,null,null,null,null,null,"District Chilled Water- Engine Driven Chiller Using Natural Gas"]
[null,null,null,null,null,null,null,null,null,null,null,"District Chilled Water- Other"]
[null,null,null,null,null,null,null,null,null,null,null,"District Hot Water"]
[null,null,null,null,null,null,null,null,null,null,null,"District Steam"]
[null,null,null,null,null,null,null,null,null,null,null,"Electricity-Grid Purchase"]
[null,null,null,null,null,null,null,null,null,null,null,"Electricity-On-Site Solar"]
[null,null,null,null,null,null,null,null,null,null,null,"Electricity-On-Site Wind"]
[null,null,null,null,null,null,null,null,null,null,null,"Fuel Oil (No. 1)"]
[null,null,null,null,null,null,null,null,null,null,null,"Fuel Oil (No. 2)"]
[null,null,null,null,null,null,null,null,null,null,null,"Fuel Oil (No. 4)"]
[null,null,null,null,null,null,null,null,null,null,null,"Fuel Oil (No. 5 and No. 6)"]
[null,null,null,null,null,null,null,null,null,null,null,"Kerosene"]
[null,null,null,null,null,null,null,null,null,null,null,"Liquid Propane"]
[null,null,null,null,null,null,null,null,null,null,null,"Natural Gas"]
[null,null,null,null,null,null,null,null,null,null,null,"Propane"]
[null,null,null,null,null,null,null,null,null,null,null,"Wood"]
[null,null,null,null,null,null,null,null,null,null,null,"Indoor Water"]
[null,null,null,null,null,null,null,null,null,null,null,"Outdoor Water"]
[null,null,null,null,null,null,null,null,null,null,null,"Indoor and Outdoor Water"]
[null,null,null,null,null,null,null,null,null,null,null,"Wastewater/Sewer"]
[null,null,null,null,null,null,null,null,null,null,null,"Other Water"]
[]
[null,null,null,null,null,null,null,null,null,null,null,"Units"]
[null,null,null,null,null,null,null,null,null,null,null,"ccf"]
[null,null,null,null,null,null,null,null,null,null,null,"cu ft"]
[null,null,null,null,null,null,null,null,null,null,null,"cu m"]
[null,null,null,null,null,null,null,null,null,null,null,"gal"]
[null,null,null,null,null,null,null,null,null,null,null,"kBtu"]
[null,null,null,null,null,null,null,null,null,null,null,"kcf"]
[null,null,null,null,null,null,null,null,null,null,null,"kGal"]
[null,null,null,null,null,null,null,null,null,null,null,"kLb"]
[null,null,null,null,null,null,null,null,null,null,null,"kWh"]
[null,null,null,null,null,null,null,null,null,null,null,"lb"]
[null,null,null,null,null,null,null,null,null,null,null,"liters"]
[null,null,null,null,null,null,null,null,null,null,null,"Mbtu"]
[null,null,null,null,null,null,null,null,null,null,null,"Mcf"]
[null,null,null,null,null,null,null,null,null,null,null,"Mgal"]
[null,null,null,null,null,null,null,null,null,null,null,"MLb"]
[null,null,null,null,null,null,null,null,null,null,null,"MWh"]
[null,null,null,null,null,null,null,null,null,null,null,"therms"]
[null,null,null,null,null,null,null,null,null,null,null,"ton hours"]
[null,null,null,null,null,null,null,null,null,null,null,"tons"]

{"sheet":"base_summary","index":1,"n_rows":0,"n_cols":0,"rows_kept":0,"cut":false,"hidden":true,"merged":[]}

{"sheet":"Building Settings","index":2,"n_rows":64,"n_cols":18,"rows_kept":64,"cut":false,"hidden":true,"merged":[[50,1,50,2],[51,1,51,2],[57,1,57,2],[63,1,63,2],[39,1,39,2],[43,1,43,2],[44,1,44,2],[45,1,45,2],[49,1,49,2],[38,1,38,2],[27,1,27,2],[18,1,18,2],[23,1,23,2],[23,7,23,8],[24,1,24,2],[3,1,3,3],[4,13,4,17],[23,5,23,6],[29,1,29,2],[37,1,37,2],[4,7,4,8]]}
["$",null,null,null,"ARC"]
[null,"Building Settings"]
[]
[null,"Use this tab to determine key parameters for your project.  Definitions are included on the instructions tab.  These values are used in conjunction with your performance data to calculate the performance score(s)                                \n \nYou must enter an \"effective date\",  which is the date this project information came into effect. If this is the first time you are uploading this information for your project, use the project registration date. Otherwise, enter the date this information changed "]
["F",null,null,null,null,null,null,"Visitor Information",null,null,null,null,null,"LEED v4.1 Tenant space exclusion: Indicate whether the space is being excluded from the specific prerequisite/performance score"]
[19,"Space Name or Description","Space Usage Type",{"$f":"CONCATENATE(\"Gross \nFloor Area\n\",IF(Instructions!$F$10=\"SI units (meters)\",\"(sq m)\",\"(sq ft)\"))","v":"Gross \nFloor Area\n(sq ft)"},"Weekly Operating Hours","Regular Building Occupants \n(daily average)","Days per week with visitors","# visitors each day","Duration of Visit (in hours/day) (HH:MM)","Visitors \n(daily average)","Visitors per week","Weighted Average Hours of Operation",null,"Energy Performance","Water Performance","Waste Performance","Transportation Performance","Human Experience Performance"]
[null,null,null,null,null,null,null,null,null,{"$f":"IFERROR((K7/E7)*(I7*24),\" \")","v":" "},{"$f":"G7*H7","v":0},{"$f":"E7*D7","v":0},null,"Include","Include","Include","Include","Include"]
[0,null,null,null,null,null,null,null,null,{"$f":"IFERROR((K8/E8)*(I8*24),\" \")","v":" "},{"$f":"G8*H8","v":0},{"$f":"E8*D8","v":0},null,"Include","Include","Include","Include","Include"]
[0,null,null,null,null,null,null,null,null,{"$f":"IFERROR((K9/E9)*(I9*24),\" \")","v":" "},0,0,null,"Include","Include","Include","Include","Include"]
[0,null,null,null,null,null,null,null,null," ",0,0,null,"Include","Include","Include","Include","Include"]
[0,null,null,null,null,null,null,null,null," ",0,0,null,"Include","Include","Include","Include","Include"]
[0,null,null,null,null,null,null,null,null," ",0,0,null,"Include","Include","Include","Include","Include"]
[0,null,null,null,null,null,null,null,null," ",0,0,null,"Include","Include","Include","Include","Include"]
[0,null,null,null,null,null,null,null,null," ",0,0,null,"Include","Include","Include","Include","Include"]
[0,null,null,null,null,null,null,null,null," ",0,0,null,"Include","Include","Include","Include","Include"]
[0,null,null,null,null,null,null,null,null," ",0,0,null,"Include","Include","Include","Include","Include"]
[null,null,null,null,null,null,null,null,null," ",0,{"$f":"E17*D17","v":0},null,"Include","Include","Include","Include","Include"]
[null,null,null,null,null,null,null,null,null," ",0,0,null,"Include","Include","Include","Include","Include"]
["A","Totals",null,{"$f":"IFERROR(SUM(D7:D18),\" \")","v":0},{"$f":"SUM(E7:E18)","v":0},0,0,0,{"$f":"SUM(I7:I18)","v":0},0]
[]
[]
[null,"Summary Building Settings for Upload"]
[]
[null,{"$f":"CONCATENATE(\"Gross \nFloor Area \n\",IF(Instructions!$F$10=\"SI units (meters)\",\"(sq m)\",\"(sq ft)\"))","v":"Gross \nFloor Area \n(sq ft)"},null,{"$f":"IFERROR(D19,\" \")","v":0}]
[null,"Operating Hours",null,{"$f":"IFERROR(ROUND(SUM(L7:L18)/D19, 0),\" 0\")","v":" 0"}]
[null,"Regular Building Occupants",null,{"$f":"F19","v":0}]
[null,"Visitors",null,{"$f":"ROUND(J19,0)","v":0}]
[null,"Total Building Occupants",null,{"$f":"IFERROR(ROUND((F19+J19), 0),\" \")","v":0}]
[]
[null,"Effective date",null,"2010-01-01"]
[]
[null,"Adjusted Values"]
[]
[]
[]
[null,"Energy Performance"]
[]
[null,{"$f":"CONCATENATE(\"Gross \nFloor Area \n\",IF(Instructions!$F$10=\"SI units (meters)\",\"(sq m)\",\"(sq ft)\"))","v":"Gross \nFloor Area \n(sq ft)"},null,0]
[null,"Weekly Operating Hours",null,0]
[null,"Total Building Occupants",null,0]
[]
[null,"Water Performance"]
[]
[null,{"$f":"CONCATENATE(\"Gross \nFloor Area \n\",IF(Instructions!$F$10=\"SI units (meters)\",\"(sq m)\",\"(sq ft)\"))","v":"Gross \nFloor Area \n(sq ft)"},null,0]
[null,"Weekly Operating Hours",null,0]
[null,"Total Building Occupants",null,0]
[]
[null,"Waste Performance"]
[]
[null,{"$f":"CONCATENATE(\"Gross \nFloor Area \n\",IF(Instructions!$F$10=\"SI units (meters)\",\"(sq m)\",\"(sq ft)\"))","v":"Gross \nFloor Area \n(sq ft)"},null,0]
[null,"Weekly Operating Hours",null,0]
[null,"Total Building Occupants",null,0]
[]
[null,"Transportation Performance"]
[]
[null,"Regular Building Occupants",null,0]
[null,"Visitors",null,0]
[null,"Total Building Occupants",null,0]
[]
[null,"Human Experience Performance"]
[]
[null,"Regular Building Occupants",null,0]
[null,"Visitors",null,0]
[null,"Total Building Occupants",null,0]

{"sheet":"base_w","index":3,"n_rows":29,"n_cols":10,"rows_kept":29,"cut":false,"hidden":true,"merged":[[10,1,10,4],[0,9,0,12],[5,9,5,12]]}
["$",{"$f":"MID(CELL(\"filename\",A1),FIND(\"]\",CELL(\"filename\",A1))+1,256)","v":"base_w"},null,{"$f":"B1","v":"base_w"},"ARC",null,null,null,null,"Note : Please provide the required information for all the meters. Please note that if the platform"]
["$","Meter name",null,null,null,null,null,null,null," already has data for the overlapping dates, the data from the template will not update the"]
["$","Fuel Source",null,"Municipality supplied potable water",null,null,null,null,null,"overlapping data. To  upload such readings, the data should be deleted from the platform by clicking"]
["$","Unit of measurement",null,"gal",null,null,null,null,null,"the delete button next to those readings.  If the entire meter as to be updated, the better way"]
["$","Data Source",null,null,null,null,null,null,null,"is to delete the entire meter by clicking the delete meter button under the details tab of the meter."]
[10," Period Start Date (MM-DD-YYYY)","   Period End Date  (MM-DD-YYYY)",{"$f":"CONCATENATE(\"Period Consumption \n\",\"(\",D4,\")\")","v":"Period Consumption \n(gal)"},null,null,null,null,null,"For the date columns please follow the pattern MM-DD-YYYY either while copying the data form external file or entering the data manaully within the ARC template to upload the data to the project. "]
[]
[]
[null,null,null,null,null,null,null,null,"Municipality supplied potable water"]
["A",null,null,null,null,null,null,null,"Municipality supplied reclaimed water"]
[null,null,null,null,null,null,null,null,"Reclaimed onsite"]
[]
[]
[]
[null,null,null,null,null,null,null,"gal"]
[null,null,null,null,null,null,null,"kGal"]
[null,null,null,null,null,null,null,"MGal"]
[null,null,null,null,null,null,null,"cf"]
[null,null,null,null,null,null,null,"ccf"]
[null,null,null,null,null,null,null,"kcf"]
[null,null,null,null,null,null,null,"mcf"]
[null,null,null,null,null,null,null,"l"]
[null,null,null,null,null,null,null,"cu m"]
[null,null,null,null,null,null,null,"gal(UK)"]
[null,null,null,null,null,null,null,"kGal(UK)"]
[null,null,null,null,null,null,null,"MGal(UK)"]
[null,null,null,null,null,null,null,"cGal (UK)"]
[null,null,null,null,null,null,null,"cGal (US)"]
[null,null,null,null,null,null,null,"Kcm"]

{"sheet":"base_e","index":4,"n_rows":21,"n_cols":12,"rows_kept":21,"cut":false,"hidden":true,"merged":[[5,11,5,21]]}
["$",{"$f":"MID(CELL(\"filename\",A1),FIND(\"]\",CELL(\"filename\",A1))+1,256)","v":"base_e"},null,{"$f":"B1","v":"base_e"},"ARC",null,null,null,null,null,null,"Note : Please provide the required information for all the meters. Please note that if the platform"]
["$","Meter name",null,null,null,null,null,null,null,null,null," already has data for the overlapping dates, the data from the template will not update the"]
["$","Fuel Source",null,"Purchased from Grid",null,null,null,null,null,null,null,"overlapping data. To  upload such readings, the data should be deleted from the platform by clicking"]
["$","Unit of measurement",null,"kWh",null,null,null,null,null,null,null,"the delete button next to those readings.  If the entire meter as to be updated, the better way"]
["$","Data Source",null,null,null,null,null,null,null,null,null,"is to delete the entire meter by clicking the delete meter button under the details tab of the meter."]
[10," Period Start Date (MM-DD-YYYY)","  Period End Date  (MM-DD-YYYY)",{"$f":"CONCATENATE(\"Period Consumption \n\",\"(\",D4,\")\")","v":"Period Consumption \n(kWh)"},null,null,null,null,null,null,null,"For the date columns please follow the pattern MM-DD-YYYY either while copying the data form external file or entering the data manaully within the ARC template to upload the data to the project. "]
[]
[null,null,null,null,null,null,null,null,null,"Electricity"]
[null,null,null,null,null,null,null,null,null,"Purchased from Grid"]
["A",null,null,null,null,null,null,null,null,"Generated onsite - solar"]
[null,null,null,null,null,null,null,null,null,"Generated onsite - wind"]
[null,null,null,null,null,null,null,null,null,"Generated onsite - renewable(other)"]
[null,null,null,null,null,null,null,null,null,"Generated offsite - renewable"]
[null,null,null,null,null,null,null,null,null,"Uninterruptible Power Supply (UPS) Output Meter"]
[null,null,null,null,null,null,"kWh",null,null,"Power Distribution Unit (PDU) Input Meter"]
[null,null,null,null,null,null,"MWh",null,null,"Power Distribution Unit (PDU) Output Meter"]
[null,null,null,null,null,null,"MBtu",null,null,"IT Equipment Input Meter"]
[null,null,null,null,null,null,"kBtu"]
[null,null,null,null,null,null,"GJ"]
[]
[null,null,null,null,null,null,"Electricity"]

{"sheet":"base_f","index":5,"n_rows":42,"n_cols":23,"rows_kept":42,"cut":false,"hidden":true,"merged":[[5,22,5,32]]}
["$",{"$f":"MID(CELL(\"filename\",A1),FIND(\"]\",CELL(\"filename\",A1))+1,256)","v":"base_f"},null,{"$f":"B1","v":"base_f"},"ARC",null,null,null,null,null,null,null,null,null,null,null,null,null,null,null,null,null,"Note : Please provide the required information for all the meters. Please note that if the platform"]
["$","Meter name",null,null,null,null,null,null,null,null,null,null,null,null,null,null,null,null,null,null,null,null," already has data for the overlapping dates, the data from the template will not update the"]
["$","Fuel Source",null,"Natural Gas",null,null,null,null,null,null,null,null,null,null,null,null,null,null,null,null,null,null,"overlapping data. To  upload such readings, the data should be deleted from the platform by clicking"]
["$","Unit of measurement",null,"kWh",null,null,null,null,null,null,null,null,null,null,null,null,null,null,null,null,null,null,"the delete button next to those readings.  If the entire meter as to be updated, the better way"]
["$","Data Source",null,null,null,null,null,null,null,null,null,null,null,null,null,null,null,null,null,null,null,null,"is to delete the entire meter by clicking the delete meter button under the details tab of the meter."]
[10," Period Start Date (MM-DD-YYYY)","  Period End Date  (MM-DD-YYYY)",{"$f":"CONCATENATE(\"Period Consumption \n\",\"(\",D4,\")\")","v":"Period Consumption \n(kWh)"},null,null,null,null,null,null,null,null,null,null,null,null,null,null,null,null,null,null,"For the date columns please follow the pattern MM-DD-YYYY either while copying the data form external file or entering the data manaully within the ARC template to upload the data to the project. "]
[]
[]
[]
["A",null,null,null,null,null,null,null,null,null,null,null,null,null,null,null,null,null,null,null,null,"Other Fuels"]
[]
[]
[]
[]
[]
[]
[]
[]
[null,null,null,null,null,null,"Natural Gas","kWh","MWh","therms","kBtu","MBtu","GJ","cu m","l","gal","kGal","MGal","cf","ccf","kcf","mcf"]
[null,null,null,null,null,null,"Wood","kWh","MWh","therms","kBtu","MBtu","GJ","tons","Tonnes (metric)"]
[null,null,null,null,null,null,"Propane","kWh","MWh","therms","kBtu","MBtu","GJ","cu m","l","gal","kGal","MGal","cf","ccf","kcf","mcf"]
[null,null,null,null,null,null,"Liquid Propane","kWh","MWh","therms","kBtu","MBtu","GJ","cu m","l","gal","kGal","MGal","cf","ccf","kcf","mcf"]
[null,null,null,null,null,null,"Kerosene","kWh","MWh","therms","kBtu","MBtu","GJ","cu m","l","gal","kGal","MGal","cf","ccf","kcf","mcf"]
[null,null,null,null,null,null,"Fuel Oil (No. 1)","kWh","MWh","therms","kBtu","MBtu","GJ","cu m","l","gal","kGal","MGal","cf","ccf","kcf","mcf"]
[null,null,null,null,null,null,"Fuel Oil (No. 2)","kWh","MWh","therms","kBtu","MBtu","GJ","cu m","l","gal","kGal","MGal","cf","ccf","kcf","mcf"]
[null,null,null,null,null,null,"Fuel Oil (No. 4)","kWh","MWh","therms","kBtu","MBtu","GJ","cu m","l","gal","kGal","MGal","cf","ccf","kcf","mcf"]
[null,null,null,null,null,null,"Fuel Oil (No. 5 & No. 6)","kWh","MWh","therms","kBtu","MBtu","GJ","cu m","l","gal","kGal","MGal","cf","ccf","kcf","mcf"]
[null,null,null,null,null,null,"Coal (anthracite)","kWh","MWh","therms","kBtu","MBtu","GJ","tons","Lbs","KLbs","MLbs","Tonnes (metric)"]
[null,null,null,null,null,null,"Coal (bituminous)","kWh","MWh","therms","kBtu","MBtu","GJ","tons","Lbs","KLbs","MLbs","Tonnes (metric)"]
[null,null,null,null,null,null,"Coke","kWh","MWh","therms","kBtu","MBtu","GJ","tons","Lbs","KLbs","MLbs","Tonnes (metric)"]
[null,null,null,null,null,null,"Diesel","kWh","MWh","therms","kBtu","MBtu","GJ","cu m","l","gal","kGal","MGal","cf","ccf","kcf","mcf"]
[null,null,null,null,null,null,"District Steam","kWh","MWh","therms","kBtu","MBtu","GJ","Lbs","KLbs","MLbs","kg"]
[null,null,null,null,null,null,"District Hot Water","kWh","MWh","therms","kBtu","MBtu","GJ"]
[null,null,null,null,null,null,"District Chilled Water (Electric Driven Chiller)","kWh","MWh","therms","kBtu","MBtu","GJ","ton hours"]
[null,null,null,null,null,null,"District Chilled Water (Absorption Chiller using Natural Gas)","kWh","MWh","therms","kBtu","MBtu","GJ","ton hours"]
[null,null,null,null,null,null,"District Chilled Water (Engine-Driven Chiller using Natural Gas)","kWh","MWh","therms","kBtu","MBtu","GJ","ton hours"]
[null,null,null,null,null,null,"Compressed Natural Gas (CNG)","kWh","MWh","therms","kBtu","MBtu","GJ"]
[null,null,null,null,null,null,"Liquefied Natural Gas (LPG)","kWh","MWh","therms","kBtu","MBtu","GJ"]
[null,null,null,null,null,null," Biodiesel (B100)","kWh","MWh","therms","kBtu","MBtu","GJ"]
[null,null,null,null,null,null,"Biodiesel (B20)","kWh","MWh","therms","kBtu","MBtu","GJ"]
[null,null,null,null,null,null,"Renewable Diesel (Renewable Diesel)","kWh","MWh","therms","kBtu","MBtu","GJ"]
[null,null,null,null,null,null,"District Chilled Water (Unspecified)","kWh","MWh","therms","kBtu","MBtu","GJ"]

{"sheet":"CO2 Reading for Upload","index":6,"n_rows":10,"n_cols":6,"rows_kept":10,"cut":false,"hidden":true,"merged":[[2,1,2,2],[1,1,1,2],[5,5,5,14]]}
["$",null,null,null,"ARC","Note : Please provide the required information for all the meters. Please note that if the platform"]
["$","Meter name",null,"Default CO2 Meter",null," already has data for the overlapping dates, the data from the template will not update the"]
["$","Meter Source",null,"CO2",null,"overlapping data. To  upload such readings, the data should be deleted from the platform by clicking"]
["$","Unit of measurement",null,"ppm",null,"the delete button next to those readings.  If the entire meter as to be updated, the better way"]
[null,"Complete values on readings tab.",null,null,null,"is to delete the entire meter by clicking the delete meter button under the details tab of the meter."]
[11,"Period Start Date   (MM-DD-YYYY)","Period End Date   (MM-DD-YYYY)",{"$f":"CONCATENATE(\"Average 95th Percentile CO2 Reading \",\"(\",D4,\")\")","v":"Average 95th Percentile CO2 Reading (ppm)"},null,"For the date columns please follow the pattern MM-DD-YYYY either while copying the data form external file or entering the data manaully within the ARC template to upload the data to the project. "]
[{"$f":"IFERROR(IF(D7=\"\",1,0),1)","v":0},{"$f":"INDEX(Dates,1,E7)","v":""},{"$f":"B7","v":""},{"$f":"HLOOKUP(B7,ReadingTable,2,FALSE)","v":0},{"$f":"IF(E6=\"\",7,E6+1)","v":7}]
["A"]
[]
["A"]

{"sheet":"CO2 Readings","index":7,"n_rows":23,"n_cols":7,"rows_kept":23,"cut":false,"hidden":true,"merged":[[6,1,8,1],[0,6,1,11]]}
["$","CO2 Readings",null,null,null,null,"Note : Please provide the required information for all the meters. Please note that if the platform already has data for the overlapping dates, the data from the template will not update the overlapping data. To  upload such readings, the data should be deleted from the platform by clicking the delete button next to those readings.  If the entire meter as to be updated, the better way is to delete the entire meter by clicking the delete meter button under the details tab of the meter. For the date columns please follow the pattern MM-DD-YYYY either while copying the data form external file or entering the data manaully within the ARC template to upload the data to the project. \t\t\t\t\t\t\t\t\t"]
["$","Location","Audit Number","  Date               (MM-DD-YYYY)","Time","CO2 Reading\n(ppm)"]
[]
[]
[]
["B",null,null,null,null,null,{"$f":"IF(G8=\"\",1,0)","v":1}]
["$",null,null,null,null,null,"Date (MM-DD-YYYY)"]
["$",null,null,null,null,null,{"$f":"IFERROR(INDEX($D$3:$D$5, MATCH(0,IF(ISBLANK($D$3:$D$5),1,COUNTIF($F$8:F8, $D$3:$D$5)), 0)),\"\")","v":""}]
["$",null,null,null,null,null,"95th Percentile"]
[{"$f":"IF(B10=\"\",1,0)","v":1},{"$f":"IFERROR(INDEX($B$3:$B$5, MATCH(0,IF(ISBLANK($B$3:$B$5),1,COUNTIF($B$9:B9, $B$3:$B$5)), 0)),\"\")","v":""},null,null,null,null,{"$f":"IFERROR(PERCENTILE(IF($B$3:$B$5=$B10,IF($D$3:$D$5=G$8,IF($F$3:$F$5<>\"\",$F$3:$F$5))),0.95),\"\")","v":""}]
[{"$f":"IF(B11=\"\",1,0)","v":1},{"$f":"IFERROR(INDEX($B$3:$B$5, MATCH(0,IF(ISBLANK($B$3:$B$5),1,COUNTIF($B$9:B10, $B$3:$B$5)), 0)),\"\")","v":""},null,null,null,null,{"$f":"IFERROR(PERCENTILE(IF($B$3:$B$5=$B11,IF($D$3:$D$5=G$8,IF($F$3:$F$5<>\"\",$F$3:$F$5))),0.95),\"\")","v":""}]
[]
["A"]
[null,null,null,null,null,null,{"$f":"G8","v":""}]
[null,"Average for each date",null,null,null,null,{"$f":"IFERROR(AVERAGE(G10:G13),0)","v":0}]
[]
[10,"Period Start Date"]
[{"$f":"IFERROR(IF(D18=\"\",1,0),1)","v":0},{"$f":"INDEX(Dates,1,E18)","v":""},{"$f":"B18","v":""},{"$f":"HLOOKUP(B18,ReadingTable,2,FALSE)","v":0},{"$f":"IF(E17=\"\",7,E17+1)","v":7}]
[]
[null,"# of unique dates"]
[null,{"$f":"SUM(IF($D$3:$D$5<>\"\",1/COUNTIF($D$3:$D$5, $D$3:$D$5), 0))","v":0},{"$f":"SUM(IF($B$3:$B$5<>\"\",1/COUNTIF($B$3:$B$5, $B$3:$B$5), 0))","v":0}]
[]
[null,"User-entered table formatting"]

{"sheet":"TVOC Reading for Upload","index":8,"n_rows":10,"n_cols":6,"rows_kept":10,"cut":false,"hidden":true,"merged":[[2,1,2,2],[1,1,1,2],[5,5,5,14]]}
["$",null,null,null,"ARC","Note : Please provide the required information for all the meters. Please note that if the platform"]
["$","Meter name",null,"Default TVOC Meter",null," already has data for the overlapping dates, the data from the template will not update the"]
["$","Meter Source",null,"TVOCs",null,"overlapping data. To  upload such readings, the data should be deleted from the platform by clicking"]
["$","Unit of measurement",null,"ug/m3",null,"the delete button next to those readings.  If the entire meter as to be updated, the better way"]
[null,"Complete readings on readings tab.",null,null,null,"is to delete the entire meter by clicking the delete meter button under the details tab of the meter."]
[11,"Period Start Date  (MM-DD-YYYY)","  Period End Date (MM-DD-YYYY)",{"$f":"CONCATENATE(\"Highest TVOC Reading \n\",\"(\",D4,\")\")","v":"Highest TVOC Reading \n(ug/m3)"},null,"For the date columns please follow the pattern MM-DD-YYYY either while copying the data form external file or entering the data manaully within the ARC template to upload the data to the project. "]
[{"$f":"IFERROR(IF(D7=\"\",1,0),1)","v":0},{"$f":"INDEX(DatesVOC,1,E7)","v":""},{"$f":"B7","v":""},{"$f":"HLOOKUP(B7,ReadingTableVOC,2,FALSE)","v":0},{"$f":"IF(E6=\"\",8,E6+1)","v":8}]
["A"]
[]
["A"]

{"sheet":"TVOC Readings","index":9,"n_rows":21,"n_cols":8,"rows_kept":21,"cut":false,"hidden":true,"merged":[[6,1,8,1],[0,7,1,12]]}
["$","TVOC Readings",null,null,null,null,null,"Note : Please provide the required information for all the meters. Please note that if the platform already has data for the overlapping dates, the data from the template will not update the overlapping data. To  upload such readings, the data should be deleted from the platform by clicking the delete button next to those readings.  If the entire meter as to be updated, the better way is to delete the entire meter by clicking the delete meter button under the details tab of the meter. For the date columns please follow the pattern MM-DD-YYYY either while copying the data form external file or entering the data manaully within the ARC template to upload the data to the project. \t\t\t\t\t\t\t\t\t"]
["$","Location","Audit Number","Date              (MM-DD-YYYY)","Start Time","End Time","TVOC Reading\n(µg/m3 )"]
[]
[]
[]
["B",null,null,null,null,null,null,{"$f":"IF(H8=\"\",1,0)","v":1}]
["$",null,null,null,null,null,null,"Date (MM-DD-YYYY)"]
["$",null,null,null,null,null,null,{"$f":"IFERROR(INDEX($D$3:$D$5, MATCH(0,IF(ISBLANK($D$3:$D$5),1,COUNTIF($G$8:G8, $D$3:$D$5)), 0)),\"\")","v":""}]
["$",null,null,null,null,null,null,"Average for each location"]
[{"$f":"IF(B10=\"\",1,0)","v":1},{"$f":"IFERROR(INDEX($B$3:$B$5, MATCH(0,IF(ISBLANK($B$3:$B$5),1,COUNTIF($B$9:B9, $B$3:$B$5)), 0)),\"\")","v":""},null,null,null,null,null,{"$f":"IFERROR(AVERAGE(IF($B$3:$B$5=$B10,IF($D$3:$D$5=H$8,IF($G$3:$G$5<>\"\",$G$3:$G$5)))),\"\")","v":""}]
[{"$f":"IF(B11=\"\",1,0)","v":1},{"$f":"IFERROR(INDEX($B$3:$B$5, MATCH(0,IF(ISBLANK($B$3:$B$5),1,COUNTIF($B$9:B10, $B$3:$B$5)), 0)),\"\")","v":""},null,null,null,null,null,{"$f":"IFERROR(AVERAGE(IF($B$3:$B$5=$B11,IF($D$3:$D$5=H$8,IF($G$3:$G$5<>\"\",$G$3:$G$5)))),\"\")","v":""}]
[]
["A"]
[null,null,null,null,null,null,null,{"$f":"H8","v":""}]
[null,"Maximum level for each date",null,null,null,null,null,{"$f":"IFERROR(MAX(H10:H13),0)","v":0}]
[]
[10,"Period Start Date"]
[{"$f":"IFERROR(IF(D18=\"\",1,0),1)","v":0},{"$f":"INDEX(DatesVOC,1,E18)","v":""},{"$f":"B18","v":""},{"$f":"HLOOKUP(B18,ReadingTableVOC,2,FALSE)","v":0},{"$f":"IF(E17=\"\",8,E17+1)","v":8}]
[]
[null,"# of unique dates"]
[null,{"$f":"SUM(IF($D$3:$D$5<>\"\",1/COUNTIF($D$3:$D$5, $D$3:$D$5), 0))","v":0},{"$f":"SUM(IF($B$3:$B$5<>\"\",1/COUNTIF($B$3:$B$5, $B$3:$B$5), 0))","v":0}]

{"sheet":"Waste Stream","index":10,"n_rows":14,"n_cols":14,"rows_kept":14,"cut":false,"hidden":true,"merged":[[1,1,1,3],[2,1,2,3],[5,13,5,22]]}
["$",null,null,null,"ARC","ARC",null,null,null,null,null,null,null,"Note : Please provide the required information for all the meters. Please note that if the platform"]
["$","Meter name",null,null,"Waste Stream",null,null,null,null,null,null,null,null," already has data for the overlapping dates, the data from the template will not update the"]
["$","Meter Source",null,null,"Waste",null,null,null,null,null,null,null,null,"overlapping data. To  upload such readings, the data should be deleted from the platform by clicking"]
["$","Unit of measurement",null,null,"lbs",null,null,null,null,null,null,null,null,"the delete button next to those readings.  If the entire meter as to be updated, the better way"]
["$",null,null,null,null,null,null,null,null,null,null,null,null,"is to delete the entire meter by clicking the delete meter button under the details tab of the meter."]
[10,"Period Start Date  (MM-DD-YYYY)"," Period End Date  (MM-DD-YYYY)",{"$f":"CONCATENATE(\"Total Waste \n\",\"(\",E4,\")\")","v":"Total Waste \n(lbs)"},{"$f":"CONCATENATE(\"Diverted \n\",\"(\",E4,\")\")","v":"Diverted \n(lbs)"},null,null,null,null,null,null,null,null,"For the date columns please follow the pattern MM-DD-YYYY either while copying the data form external file or entering the data manaully within the ARC template to upload the data to the project. "]
[]
[]
[0]
["A"]
[]
[null,null,null,null,null,null,null,null,"lbs"]
[null,null,null,null,null,null,null,null,"kg"]
[null,null,null,null,null,null,null,null,"US tons"]

{"sheet":"Carbon Monoxide","index":11,"n_rows":36,"n_cols":23,"rows_kept":36,"cut":false,"hidden":true,"merged":[[5,22,5,27]]}
["$",{"$f":"MID(CELL(\"filename\",A1),FIND(\"]\",CELL(\"filename\",A1))+1,256)","v":"Carbon Monoxide"},null,{"$f":"B1","v":"Carbon Monoxide"},"ARC",null,null,null,null,null,null,null,null,null,null,null,null,null,null,null,null,null,"Note : Please provide the required information for all the meters. Please note that if the platform already has data for the  overlapping dates, "]
["$","Meter name",null,"Carbon Monoxide",null,null,null,null,null,null,null,null,null,null,null,null,null,null,null,null,null,null,"the data from the template will not update the overlapping data. To  upload such readings, the data should be deleted from the platform by"]
[null,"Unit of measurement",null,"ppm",null,null,null,null,null,null,null,null,null,null,null,null,null,null,null,null,null,null,"clicking  the delete button next to those readings.  If the entire meter as to be updated, the better way is to delete the entire meter by clicking "]
[null,null,null,null,null,null,null,null,null,null,null,null,null,null,null,null,null,null,null,null,null,null,"the delete button next to those readings.  If the entire meter as to be updated, the better way"]
["$","Data Source",null,null,null,null,null,null,null,null,null,null,null,null,null,null,null,null,null,null,null,null,"the delete meter button under the details tab of the meter. For the date columns please follow the pattern MM-DD-YYYY either while copying the "]
[10,"Period Start Date  (MM-DD-YYYY)","Period End Date  (MM-DD-YYYY)",{"$f":"CONCATENATE(\"Period Reading \n\",\"(\",D3,\")\")","v":"Period Reading \n(ppm)"},null,null,null,null,null,null,null,null,null,null,null,null,null,null,null,null,null,null,"data form external file or entering the data manaully within the ARC template to upload the data to the project. "]
[null,null,null,null,null,null,null,"ppm"]
[null,null,null,null,null,null,null,"mg/m3"]
[]
["A",null,null,null,null,null,null,null,null,null,null,null,null,null,null,null,null,null,null,null,null,"Other Fuels"]
[]
[]
[]
[]
[]
[]
[]
[]
[null,null,null,null,null,null,"Natural Gas","kWh","MWh","therms","kBtu","MBtu","GJ","cu m","l","gal","kGal","MGal","cf","ccf","kcf","mcf"]
[null,null,null,null,null,null,"Wood","kWh","MWh","therms","kBtu","MBtu","GJ","tons","Tonnes(metric)"]
[null,null,null,null,null,null,"Propane","kWh","MWh","therms","kBtu","MBtu","GJ","cu m","l","gal","kGal","MGal","cf","ccf","kcf","mcf"]
[null,null,null,null,null,null,"Liquid Propane","kWh","MWh","therms","kBtu","MBtu","GJ","cu m","l","gal","kGal","MGal","cf","ccf","kcf","mcf"]
[null,null,null,null,null,null,"Kerosene","kWh","MWh","therms","kBtu","MBtu","GJ","cu m","l","gal","kGal","MGal","cf","ccf","kcf","mcf"]
[null,null,null,null,null,null,"Fuel Oil (No. 1)","kWh","MWh","therms","kBtu","MBtu","GJ","cu m","l","gal","kGal","MGal","cf","ccf","kcf","mcf"]
[null,null,null,null,null,null,"Fuel Oil (No. 2)","kWh","MWh","therms","kBtu","MBtu","GJ","cu m","l","gal","kGal","MGal","cf","ccf","kcf","mcf"]
[null,null,null,null,null,null,"Fuel Oil (No. 4)","kWh","MWh","therms","kBtu","MBtu","GJ","cu m","l","gal","kGal","MGal","cf","ccf","kcf","mcf"]
[null,null,null,null,null,null,"Fuel Oil (No. 5 & No. 6)","kWh","MWh","therms","kBtu","MBtu","GJ","cu m","l","gal","kGal","MGal","cf","ccf","kcf","mcf"]
[null,null,null,null,null,null,"Coal (anthracite)","kWh","MWh","therms","kBtu","MBtu","GJ","tons","Lbs","KLbs","MLbs","Tonnes (metric)"]
[null,null,null,null,null,null,"Coal (bituminous)","kWh","MWh","therms","kBtu","MBtu","GJ","tons","Lbs","KLbs","MLbs","Tonnes (metric)"]
[null,null,null,null,null,null,"Coke","kWh","MWh","therms","kBtu","MBtu","GJ","tons","Lbs","KLbs","MLbs","Tonnes (metric)"]
[null,null,null,null,null,null,"Diesel","kWh","MWh","therms","kBtu","MBtu","GJ","cu m","l","gal","kGal","MGal","cf","ccf","kcf","mcf"]
[null,null,null,null,null,null,"District Steam","kWh","MWh","therms","kBtu","MBtu","GJ","Lbs","KLbs","MLbs","kg"]
[null,null,null,null,null,null,"District Hot Water","kWh","MWh","therms","kBtu","MBtu","Gj"]
[null,null,null,null,null,null,"District Chilled Water (Electric Driven Chiller)","kWh","MWh","therms","kBtu","MBtu","Gj","ton hours"]
[null,null,null,null,null,null,"District Chilled Water (Absorption Chiller using Natural Gas)","kWh","MWh","therms","kBtu","MBtu","Gj","ton hours"]
[null,null,null,null,null,null,"District Chilled Water (Engine-Driven Chiller using Natural Gas)","kWh","MWh","therms","kBtu","MBtu","Gj","ton hours"]

{"sheet":"Ozone","index":12,"n_rows":36,"n_cols":23,"rows_kept":36,"cut":false,"hidden":true,"merged":[[5,22,5,27]]}
["$",{"$f":"MID(CELL(\"filename\",A1),FIND(\"]\",CELL(\"filename\",A1))+1,256)","v":"Ozone"},null,{"$f":"B1","v":"Ozone"},"ARC",null,null,null,null,null,null,null,null,null,null,null,null,null,null,null,null,null,"Note : Please provide the required information for all the meters. Please note that if the platform already has data for the  overlapping dates, "]
["$","Meter name",null,"Ozone",null,null,null,null,null,null,null,null,null,null,null,null,null,null,null,null,null,null,"the data from the template will not update the overlapping data. To  upload such readings, the data should be deleted from the platform by"]
[null,"Unit of measurement",null,"ppm",null,null,null,null,null,null,null,null,null,null,null,null,null,null,null,null,null,null,"clicking  the delete button next to those readings.  If the entire meter as to be updated, the better way is to delete the entire meter by clicking "]
[null,null,null,null,null,null,null,null,null,null,null,null,null,null,null,null,null,null,null,null,null,null,"the delete button next to those readings.  If the entire meter as to be updated, the better way"]
["$","Data Source",null,null,null,null,null,null,null,null,null,null,null,null,null,null,null,null,null,null,null,null,"the delete meter button under the details tab of the meter. For the date columns please follow the pattern MM-DD-YYYY either while copying the "]
[10,"Period Start Date  (MM-DD-YYYY)","Period End Date  (MM-DD-YYYY)",{"$f":"CONCATENATE(\"Period Reading \n\",\"(\",D3,\")\")","v":"Period Reading \n(ppm)"},null,null,null,null,null,null,null,null,null,null,null,null,null,null,null,null,null,null,"data form external file or entering the data manaully within the ARC template to upload the data to the project. "]
[null,null,null,null,null,null,null,"ppm"]
[null,null,null,null,null,null,null,"µg/m3"]
[]
["A",null,null,null,null,null,null,null,null,null,null,null,null,null,null,null,null,null,null,null,null,"Other Fuels"]
[]
[]
[]
[]
[]
[]
[]
[]
[null,null,null,null,null,null,"Natural Gas","kWh","MWh","therms","kBtu","MBtu","GJ","cu m","l","gal","kGal","MGal","cf","ccf","kcf","mcf"]
[null,null,null,null,null,null,"Wood","kWh","MWh","therms","kBtu","MBtu","GJ","tons","Tonnes(metric)"]
[null,null,null,null,null,null,"Propane","kWh","MWh","therms","kBtu","MBtu","GJ","cu m","l","gal","kGal","MGal","cf","ccf","kcf","mcf"]
[null,null,null,null,null,null,"Liquid Propane","kWh","MWh","therms","kBtu","MBtu","GJ","cu m","l","gal","kGal","MGal","cf","ccf","kcf","mcf"]
[null,null,null,null,null,null,"Kerosene","kWh","MWh","therms","kBtu","MBtu","GJ","cu m","l","gal","kGal","MGal","cf","ccf","kcf","mcf"]
[null,null,null,null,null,null,"Fuel Oil (No. 1)","kWh","MWh","therms","kBtu","MBtu","GJ","cu m","l","gal","kGal","MGal","cf","ccf","kcf","mcf"]
[null,null,null,null,null,null,"Fuel Oil (No. 2)","kWh","MWh","therms","kBtu","MBtu","GJ","cu m","l","gal","kGal","MGal","cf","ccf","kcf","mcf"]
[null,null,null,null,null,null,"Fuel Oil (No. 4)","kWh","MWh","therms","kBtu","MBtu","GJ","cu m","l","gal","kGal","MGal","cf","ccf","kcf","mcf"]
[null,null,null,null,null,null,"Fuel Oil (No. 5 & No. 6)","kWh","MWh","therms","kBtu","MBtu","GJ","cu m","l","gal","kGal","MGal","cf","ccf","kcf","mcf"]
[null,null,null,null,null,null,"Coal (anthracite)","kWh","MWh","therms","kBtu","MBtu","GJ","tons","Lbs","KLbs","MLbs","Tonnes (metric)"]
[null,null,null,null,null,null,"Coal (bituminous)","kWh","MWh","therms","kBtu","MBtu","GJ","tons","Lbs","KLbs","MLbs","Tonnes (metric)"]
[null,null,null,null,null,null,"Coke","kWh","MWh","therms","kBtu","MBtu","GJ","tons","Lbs","KLbs","MLbs","Tonnes (metric)"]
[null,null,null,null,null,null,"Diesel","kWh","MWh","therms","kBtu","MBtu","GJ","cu m","l","gal","kGal","MGal","cf","ccf","kcf","mcf"]
[null,null,null,null,null,null,"District Steam","kWh","MWh","therms","kBtu","MBtu","GJ","Lbs","KLbs","MLbs","kg"]
[null,null,null,null,null,null,"District Hot Water","kWh","MWh","therms","kBtu","MBtu","Gj"]
[null,null,null,null,null,null,"District Chilled Water (Electric Driven Chiller)","kWh","MWh","therms","kBtu","MBtu","Gj","ton hours"]
[null,null,null,null,null,null,"District Chilled Water (Absorption Chiller using Natural Gas)","kWh","MWh","therms","kBtu","MBtu","Gj","ton hours"]
[null,null,null,null,null,null,"District Chilled Water (Engine-Driven Chiller using Natural Gas)","kWh","MWh","therms","kBtu","MBtu","Gj","ton hours"]

{"sheet":"Atmospheric Particulate Matter","index":13,"n_rows":36,"n_cols":25,"rows_kept":36,"cut":false,"hidden":true,"merged":[[5,24,5,29]]}
["$",{"$f":"MID(CELL(\"filename\",A1),FIND(\"]\",CELL(\"filename\",A1))+1,256)","v":"Atmospheric Particulate Matter"},null,{"$f":"B1","v":"Atmospheric Particulate Matter"},"ARC",null,null,null,null,null,null,null,null,null,null,null,null,null,null,null,null,null,null,null,"Note : Please provide the required information for all the meters. Please note that if the platform already has data for the  overlapping dates, "]
["$","Meter name",null,"Atmospheric Particulate Matter (PM2.5)",null,null,null,null,null,null,null,null,null,null,null,null,null,null,null,null,null,null,null,null,"the data from the template will not update the overlapping data. To  upload such readings, the data should be deleted from the platform by"]
["$","Unit of measurement",null,"µg/m3",null,null,null,null,null,null,null,null,null,null,null,null,null,null,null,null,null,null,null,null,"clicking  the delete button next to those readings.  If the entire meter as to be updated, the better way is to delete the entire meter by clicking "]
[null,null,null,null,null,null,null,null,null,null,null,null,null,null,null,null,null,null,null,null,null,null,null,null,"the delete button next to those readings.  If the entire meter as to be updated, the better way"]
["$","Data Source",null,null,null,null,null,null,null,null,null,null,null,null,null,null,null,null,null,null,null,null,null,null,"the delete meter button under the details tab of the meter. For the date columns please follow the pattern MM-DD-YYYY either while copying the "]
[10,"Period Start Date  (MM-DD-YYYY)","Period End Date  (MM-DD-YYYY)",{"$f":"CONCATENATE(\"Period Reading \n\",\"(\",D3,\")\")","v":"Period Reading \n(µg/m3)"},null,null,null,null,null,null,null,null,null,null,null,null,null,null,null,null,null,null,null,null,"data form external file or entering the data manaully within the ARC template to upload the data to the project. "]
[null,null,null,null,null,null,null,"µg/m3"]
[]
[]
["A",null,null,null,null,null,null,null,null,null,null,null,null,null,null,null,null,null,null,null,null,"Other Fuels"]
[]
[]
[]
[]
[]
[]
[]
[]
[null,null,null,null,null,null,"Natural Gas","kWh","MWh","therms","kBtu","MBtu","GJ","cu m","l","gal","kGal","MGal","cf","ccf","kcf","mcf"]
[null,null,null,null,null,null,"Wood","kWh","MWh","therms","kBtu","MBtu","GJ","tons","Tonnes(metric)"]
[null,null,null,null,null,null,"Propane","kWh","MWh","therms","kBtu","MBtu","GJ","cu m","l","gal","kGal","MGal","cf","ccf","kcf","mcf"]
[null,null,null,null,null,null,"Liquid Propane","kWh","MWh","therms","kBtu","MBtu","GJ","cu m","l","gal","kGal","MGal","cf","ccf","kcf","mcf"]
[null,null,null,null,null,null,"Kerosene","kWh","MWh","therms","kBtu","MBtu","GJ","cu m","l","gal","kGal","MGal","cf","ccf","kcf","mcf"]
[null,null,null,null,null,null,"Fuel Oil (No. 1)","kWh","MWh","therms","kBtu","MBtu","GJ","cu m","l","gal","kGal","MGal","cf","ccf","kcf","mcf"]
[null,null,null,null,null,null,"Fuel Oil (No. 2)","kWh","MWh","therms","kBtu","MBtu","GJ","cu m","l","gal","kGal","MGal","cf","ccf","kcf","mcf"]
[null,null,null,null,null,null,"Fuel Oil (No. 4)","kWh","MWh","therms","kBtu","MBtu","GJ","cu m","l","gal","kGal","MGal","cf","ccf","kcf","mcf"]
[null,null,null,null,null,null,"Fuel Oil (No. 5 & No. 6)","kWh","MWh","therms","kBtu","MBtu","GJ","cu m","l","gal","kGal","MGal","cf","ccf","kcf","mcf"]
[null,null,null,null,null,null,"Coal (anthracite)","kWh","MWh","therms","kBtu","MBtu","GJ","tons","Lbs","KLbs","MLbs","Tonnes (metric)"]
[null,null,null,null,null,null,"Coal (bituminous)","kWh","MWh","therms","kBtu","MBtu","GJ","tons","Lbs","KLbs","MLbs","Tonnes (metric)"]
[null,null,null,null,null,null,"Coke","kWh","MWh","therms","kBtu","MBtu","GJ","tons","Lbs","KLbs","MLbs","Tonnes (metric)"]
[null,null,null,null,null,null,"Diesel","kWh","MWh","therms","kBtu","MBtu","GJ","cu m","l","gal","kGal","MGal","cf","ccf","kcf","mcf"]
[null,null,null,null,null,null,"District Steam","kWh","MWh","therms","kBtu","MBtu","GJ","Lbs","KLbs","MLbs","kg"]
[null,null,null,null,null,null,"District Hot Water","kWh","MWh","therms","kBtu","MBtu","Gj"]
[null,null,null,null,null,null,"District Chilled Water (Electric Driven Chiller)","kWh","MWh","therms","kBtu","MBtu","Gj","ton hours"]
[null,null,null,null,null,null,"District Chilled Water (Absorption Chiller using Natural Gas)","kWh","MWh","therms","kBtu","MBtu","Gj","ton hours"]
[null,null,null,null,null,null,"District Chilled Water (Engine-Driven Chiller using Natural Gas)","kWh","MWh","therms","kBtu","MBtu","Gj","ton hours"]

{"sheet":"Acetaldehyde","index":14,"n_rows":36,"n_cols":23,"rows_kept":36,"cut":false,"hidden":true,"merged":[[5,22,5,27]]}
["$",{"$f":"MID(CELL(\"filename\",A1),FIND(\"]\",CELL(\"filename\",A1))+1,256)","v":"Acetaldehyde"},null,{"$f":"B1","v":"Acetaldehyde"},"ARC",null,null,null,null,null,null,null,null,null,null,null,null,null,null,null,null,null,"Note : Please provide the required information for all the meters. Please note that if the platform already has data for the  overlapping dates, "]
["$","Meter name",null,"Acetaldehyde",null,null,null,null,null,null,null,null,null,null,null,null,null,null,null,null,null,null,"the data from the template will not update the overlapping data. To  upload such readings, the data should be deleted from the platform by"]
["$","Unit of measurement",null,"µg/m3",null,null,null,null,null,null,null,null,null,null,null,null,null,null,null,null,null,null,"clicking  the delete button next to those readings.  If the entire meter as to be updated, the better way is to delete the entire meter by clicking "]
[null,null,null,null,null,null,null,null,null,null,null,null,null,null,null,null,null,null,null,null,null,null,"the delete button next to those readings.  If the entire meter as to be updated, the better way"]
["$","Data Source",null,null,null,null,null,null,null,null,null,null,null,null,null,null,null,null,null,null,null,null,"the delete meter button under the details tab of the meter. For the date columns please follow the pattern MM-DD-YYYY either while copying the "]
[10,"Period Start Date  (MM-DD-YYYY)","Period End Date  (MM-DD-YYYY)",{"$f":"CONCATENATE(\"Period Reading \n\",\"(\",D3,\")\")","v":"Period Reading \n(µg/m3)"},null,null,null,null,null,null,null,null,null,null,null,null,null,null,null,null,null,null,"data form external file or entering the data manaully within the ARC template to upload the data to the project. "]
[]
[]
[]
["A",null,null,null,null,null,null,null,null,null,null,null,null,null,null,null,null,null,null,null,null,"Other Fuels"]
[]
[]
[]
[]
[]
[]
[]
[]
[null,null,null,null,null,null,"Natural Gas","kWh","MWh","therms","kBtu","MBtu","GJ","cu m","l","gal","kGal","MGal","cf","ccf","kcf","mcf"]
[null,null,null,null,null,null,"Wood","kWh","MWh","therms","kBtu","MBtu","GJ","tons","Tonnes(metric)"]
[null,null,null,null,null,null,"Propane","kWh","MWh","therms","kBtu","MBtu","GJ","cu m","l","gal","kGal","MGal","cf","ccf","kcf","mcf"]
[null,null,null,null,null,null,"Liquid Propane","kWh","MWh","therms","kBtu","MBtu","GJ","cu m","l","gal","kGal","MGal","cf","ccf","kcf","mcf"]
[null,null,null,null,null,null,"Kerosene","kWh","MWh","therms","kBtu","MBtu","GJ","cu m","l","gal","kGal","MGal","cf","ccf","kcf","mcf"]
[null,null,null,null,null,null,"Fuel Oil (No. 1)","kWh","MWh","therms","kBtu","MBtu","GJ","cu m","l","gal","kGal","MGal","cf","ccf","kcf","mcf"]
[null,null,null,null,null,null,"Fuel Oil (No. 2)","kWh","MWh","therms","kBtu","MBtu","GJ","cu m","l","gal","kGal","MGal","cf","ccf","kcf","mcf"]
[null,null,null,null,null,null,"Fuel Oil (No. 4)","kWh","MWh","therms","kBtu","MBtu","GJ","cu m","l","gal","kGal","MGal","cf","ccf","kcf","mcf"]
[null,null,null,null,null,null,"Fuel Oil (No. 5 & No. 6)","kWh","MWh","therms","kBtu","MBtu","GJ","cu m","l","gal","kGal","MGal","cf","ccf","kcf","mcf"]
[null,null,null,null,null,null,"Coal (anthracite)","kWh","MWh","therms","kBtu","MBtu","GJ","tons","Lbs","KLbs","MLbs","Tonnes (metric)"]
[null,null,null,null,null,null,"Coal (bituminous)","kWh","MWh","therms","kBtu","MBtu","GJ","tons","Lbs","KLbs","MLbs","Tonnes (metric)"]
[null,null,null,null,null,null,"Coke","kWh","MWh","therms","kBtu","MBtu","GJ","tons","Lbs","KLbs","MLbs","Tonnes (metric)"]
[null,null,null,null,null,null,"Diesel","kWh","MWh","therms","kBtu","MBtu","GJ","cu m","l","gal","kGal","MGal","cf","ccf","kcf","mcf"]
[null,null,null,null,null,null,"District Steam","kWh","MWh","therms","kBtu","MBtu","GJ","Lbs","KLbs","MLbs","kg"]
[null,null,null,null,null,null,"District Hot Water","kWh","MWh","therms","kBtu","MBtu","Gj"]
[null,null,null,null,null,null,"District Chilled Water (Electric Driven Chiller)","kWh","MWh","therms","kBtu","MBtu","Gj","ton hours"]
[null,null,null,null,null,null,"District Chilled Water (Absorption Chiller using Natural Gas)","kWh","MWh","therms","kBtu","MBtu","Gj","ton hours"]
[null,null,null,null,null,null,"District Chilled Water (Engine-Driven Chiller using Natural Gas)","kWh","MWh","therms","kBtu","MBtu","Gj","ton hours"]

{"sheet":"Benzene","index":15,"n_rows":36,"n_cols":23,"rows_kept":36,"cut":false,"hidden":true,"merged":[[5,22,5,27]]}
["$",{"$f":"MID(CELL(\"filename\",A1),FIND(\"]\",CELL(\"filename\",A1))+1,256)","v":"Benzene"},null,{"$f":"B1","v":"Benzene"},"ARC",null,null,null,null,null,null,null,null,null,null,null,null,null,null,null,null,null,"Note : Please provide the required information for all the meters. Please note that if the platform already has data for the  overlapping dates, "]
["$","Meter name",null,"Benzene",null,null,null,null,null,null,null,null,null,null,null,null,null,null,null,null,null,null,"the data from the template will not update the overlapping data. To  upload such readings, the data should be deleted from the platform by"]
["$","Unit of measurement",null,"µg/m3",null,null,null,null,null,null,null,null,null,null,null,null,null,null,null,null,null,null,"clicking  the delete button next to those readings.  If the entire meter as to be updated, the better way is to delete the entire meter by clicking "]
[null,null,null,null,null,null,null,null,null,null,null,null,null,null,null,null,null,null,null,null,null,null,"the delete button next to those readings.  If the entire meter as to be updated, the better way"]
["$","Data Source",null,null,null,null,null,null,null,null,null,null,null,null,null,null,null,null,null,null,null,null,"the delete meter button under the details tab of the meter. For the date columns please follow the pattern MM-DD-YYYY either while copying the "]
[10,"Period Start Date  (MM-DD-YYYY)","Period End Date  (MM-DD-YYYY)",{"$f":"CONCATENATE(\"Period Reading \n\",\"(\",D3,\")\")","v":"Period Reading \n(µg/m3)"},null,null,null,null,null,null,null,null,null,null,null,null,null,null,null,null,null,null,"data form external file or entering the data manaully within the ARC template to upload the data to the project. "]
[]
[]
[]
["A",null,null,null,null,null,null,null,null,null,null,null,null,null,null,null,null,null,null,null,null,"Other Fuels"]
[]
[]
[]
[]
[]
[]
[]
[]
[null,null,null,null,null,null,"Natural Gas","kWh","MWh","therms","kBtu","MBtu","GJ","cu m","l","gal","kGal","MGal","cf","ccf","kcf","mcf"]
[null,null,null,null,null,null,"Wood","kWh","MWh","therms","kBtu","MBtu","GJ","tons","Tonnes(metric)"]
[null,null,null,null,null,null,"Propane","kWh","MWh","therms","kBtu","MBtu","GJ","cu m","l","gal","kGal","MGal","cf","ccf","kcf","mcf"]
[null,null,null,null,null,null,"Liquid Propane","kWh","MWh","therms","kBtu","MBtu","GJ","cu m","l","gal","kGal","MGal","cf","ccf","kcf","mcf"]
[null,null,null,null,null,null,"Kerosene","kWh","MWh","therms","kBtu","MBtu","GJ","cu m","l","gal","kGal","MGal","cf","ccf","kcf","mcf"]
[null,null,null,null,null,null,"Fuel Oil (No. 1)","kWh","MWh","therms","kBtu","MBtu","GJ","cu m","l","gal","kGal","MGal","cf","ccf","kcf","mcf"]
[null,null,null,null,null,null,"Fuel Oil (No. 2)","kWh","MWh","therms","kBtu","MBtu","GJ","cu m","l","gal","kGal","MGal","cf","ccf","kcf","mcf"]
[null,null,null,null,null,null,"Fuel Oil (No. 4)","kWh","MWh","therms","kBtu","MBtu","GJ","cu m","l","gal","kGal","MGal","cf","ccf","kcf","mcf"]
[null,null,null,null,null,null,"Fuel Oil (No. 5 & No. 6)","kWh","MWh","therms","kBtu","MBtu","GJ","cu m","l","gal","kGal","MGal","cf","ccf","kcf","mcf"]
[null,null,null,null,null,null,"Coal (anthracite)","kWh","MWh","therms","kBtu","MBtu","GJ","tons","Lbs","KLbs","MLbs","Tonnes (metric)"]
[null,null,null,null,null,null,"Coal (bituminous)","kWh","MWh","therms","kBtu","MBtu","GJ","tons","Lbs","KLbs","MLbs","Tonnes (metric)"]
[null,null,null,null,null,null,"Coke","kWh","MWh","therms","kBtu","MBtu","GJ","tons","Lbs","KLbs","MLbs","Tonnes (metric)"]
[null,null,null,null,null,null,"Diesel","kWh","MWh","therms","kBtu","MBtu","GJ","cu m","l","gal","kGal","MGal","cf","ccf","kcf","mcf"]
[null,null,null,null,null,null,"District Steam","kWh","MWh","therms","kBtu","MBtu","GJ","Lbs","KLbs","MLbs","kg"]
[null,null,null,null,null,null,"District Hot Water","kWh","MWh","therms","kBtu","MBtu","Gj"]
[null,null,null,null,null,null,"District Chilled Water (Electric Driven Chiller)","kWh","MWh","therms","kBtu","MBtu","Gj","ton hours"]
[null,null,null,null,null,null,"District Chilled Water (Absorption Chiller using Natural Gas)","kWh","MWh","therms","kBtu","MBtu","Gj","ton hours"]
[null,null,null,null,null,null,"District Chilled Water (Engine-Driven Chiller using Natural Gas)","kWh","MWh","therms","kBtu","MBtu","Gj","ton hours"]

{"sheet":"Styrene","index":16,"n_rows":36,"n_cols":23,"rows_kept":36,"cut":false,"hidden":true,"merged":[[5,22,5,27]]}
["$",{"$f":"MID(CELL(\"filename\",A1),FIND(\"]\",CELL(\"filename\",A1))+1,256)","v":"Styrene"},null,{"$f":"B1","v":"Styrene"},"ARC",null,null,null,null,null,null,null,null,null,null,null,null,null,null,null,null,null,"Note : Please provide the required information for all the meters. Please note that if the platform already has data for the  overlapping dates, "]
["$","Meter name",null,"Styrene",null,null,null,null,null,null,null,null,null,null,null,null,null,null,null,null,null,null,"the data from the template will not update the overlapping data. To  upload such readings, the data should be deleted from the platform by"]
["$","Unit of measurement",null," µg/m3",null,null,null,null,null,null,null,null,null,null,null,null,null,null,null,null,null,null,"clicking  the delete button next to those readings.  If the entire meter as to be updated, the better way is to delete the entire meter by clicking "]
[null,null,null,null,null,null,null,null,null,null,null,null,null,null,null,null,null,null,null,null,null,null,"the delete button next to those readings.  If the entire meter as to be updated, the better way"]
["$","Data Source",null,null,null,null,null,null,null,null,null,null,null,null,null,null,null,null,null,null,null,null,"the delete meter button under the details tab of the meter. For the date columns please follow the pattern MM-DD-YYYY either while copying the "]
[10,"Period Start Date (MM-DD-YYYY)"," Period End Date (MM-DD-YYYY)",{"$f":"CONCATENATE(\"Period Reading \n\",\"(\",D3,\")\")","v":"Period Reading \n( µg/m3)"},null,null,null,null,null,null,null,null,null,null,null,null,null,null,null,null,null,null,"data form external file or entering the data manaully within the ARC template to upload the data to the project. "]
[]
[]
[]
["A",null,null,null,null,null,null,null,null,null,null,null,null,null,null,null,null,null,null,null,null,"Other Fuels"]
[]
[]
[]
[]
[]
[]
[]
[]
[null,null,null,null,null,null,"Natural Gas","kWh","MWh","therms","kBtu","MBtu","GJ","cu m","l","gal","kGal","MGal","cf","ccf","kcf","mcf"]
[null,null,null,null,null,null,"Wood","kWh","MWh","therms","kBtu","MBtu","GJ","tons","Tonnes(metric)"]
[null,null,null,null,null,null,"Propane","kWh","MWh","therms","kBtu","MBtu","GJ","cu m","l","gal","kGal","MGal","cf","ccf","kcf","mcf"]
[null,null,null,null,null,null,"Liquid Propane","kWh","MWh","therms","kBtu","MBtu","GJ","cu m","l","gal","kGal","MGal","cf","ccf","kcf","mcf"]
[null,null,null,null,null,null,"Kerosene","kWh","MWh","therms","kBtu","MBtu","GJ","cu m","l","gal","kGal","MGal","cf","ccf","kcf","mcf"]
[null,null,null,null,null,null,"Fuel Oil (No. 1)","kWh","MWh","therms","kBtu","MBtu","GJ","cu m","l","gal","kGal","MGal","cf","ccf","kcf","mcf"]
[null,null,null,null,null,null,"Fuel Oil (No. 2)","kWh","MWh","therms","kBtu","MBtu","GJ","cu m","l","gal","kGal","MGal","cf","ccf","kcf","mcf"]
[null,null,null,null,null,null,"Fuel Oil (No. 4)","kWh","MWh","therms","kBtu","MBtu","GJ","cu m","l","gal","kGal","MGal","cf","ccf","kcf","mcf"]
[null,null,null,null,null,null,"Fuel Oil (No. 5 & No. 6)","kWh","MWh","therms","kBtu","MBtu","GJ","cu m","l","gal","kGal","MGal","cf","ccf","kcf","mcf"]
[null,null,null,null,null,null,"Coal (anthracite)","kWh","MWh","therms","kBtu","MBtu","GJ","tons","Lbs","KLbs","MLbs","Tonnes (metric)"]
[null,null,null,null,null,null,"Coal (bituminous)","kWh","MWh","therms","kBtu","MBtu","GJ","tons","Lbs","KLbs","MLbs","Tonnes (metric)"]
[null,null,null,null,null,null,"Coke","kWh","MWh","therms","kBtu","MBtu","GJ","tons","Lbs","KLbs","MLbs","Tonnes (metric)"]
[null,null,null,null,null,null,"Diesel","kWh","MWh","therms","kBtu","MBtu","GJ","cu m","l","gal","kGal","MGal","cf","ccf","kcf","mcf"]
[null,null,null,null,null,null,"District Steam","kWh","MWh","therms","kBtu","MBtu","GJ","Lbs","KLbs","MLbs","kg"]
[null,null,null,null,null,null,"District Hot Water","kWh","MWh","therms","kBtu","MBtu","Gj"]
[null,null,null,null,null,null,"District Chilled Water (Electric Driven Chiller)","kWh","MWh","therms","kBtu","MBtu","Gj","ton hours"]
[null,null,null,null,null,null,"District Chilled Water (Absorption Chiller using Natural Gas)","kWh","MWh","therms","kBtu","MBtu","Gj","ton hours"]
[null,null,null,null,null,null,"District Chilled Water (Engine-Driven Chiller using Natural Gas)","kWh","MWh","therms","kBtu","MBtu","Gj","ton hours"]

{"sheet":"Toluene","index":17,"n_rows":36,"n_cols":23,"rows_kept":36,"cut":false,"hidden":true,"merged":[[5,22,5,27]]}
["$",{"$f":"MID(CELL(\"filename\",A1),FIND(\"]\",CELL(\"filename\",A1))+1,256)","v":"Toluene"},null,{"$f":"B1","v":"Toluene"},"ARC",null,null,null,null,null,null,null,null,null,null,null,null,null,null,null,null,null,"Note : Please provide the required information for all the meters. Please note that if the platform already has data for the  overlapping dates, "]
["$","Meter name",null,"Toluene",null,null,null,null,null,null,null,null,null,null,null,null,null,null,null,null,null,null,"the data from the template will not update the overlapping data. To  upload such readings, the data should be deleted from the platform by"]
["$","Unit of measurement",null,"µg/m3",null,null,null,null,null,null,null,null,null,null,null,null,null,null,null,null,null,null,"clicking  the delete button next to those readings.  If the entire meter as to be updated, the better way is to delete the entire meter by clicking "]
[null,null,null,null,null,null,null,null,null,null,null,null,null,null,null,null,null,null,null,null,null,null,"the delete button next to those readings.  If the entire meter as to be updated, the better way"]
["$","Data Source",null,null,null,null,null,null,null,null,null,null,null,null,null,null,null,null,null,null,null,null,"the delete meter button under the details tab of the meter. For the date columns please follow the pattern MM-DD-YYYY either while copying the "]
[10,"Period Start Date (MM-DD-YYYY)"," Period End Date (MM-DD-YYYY)",{"$f":"CONCATENATE(\"Period Reading \n\",\"(\",D3,\")\")","v":"Period Reading \n(µg/m3)"},null,null,null,null,null,null,null,null,null,null,null,null,null,null,null,null,null,null,"data form external file or entering the data manaully within the ARC template to upload the data to the project. "]
[]
[]
[]
["A",null,null,null,null,null,null,null,null,null,null,null,null,null,null,null,null,null,null,null,null,"Other Fuels"]
[]
[]
[]
[]
[]
[]
[]
[]
[null,null,null,null,null,null,"Natural Gas","kWh","MWh","therms","kBtu","MBtu","GJ","cu m","l","gal","kGal","MGal","cf","ccf","kcf","mcf"]
[null,null,null,null,null,null,"Wood","kWh","MWh","therms","kBtu","MBtu","GJ","tons","Tonnes(metric)"]
[null,null,null,null,null,null,"Propane","kWh","MWh","therms","kBtu","MBtu","GJ","cu m","l","gal","kGal","MGal","cf","ccf","kcf","mcf"]
[null,null,null,null,null,null,"Liquid Propane","kWh","MWh","therms","kBtu","MBtu","GJ","cu m","l","gal","kGal","MGal","cf","ccf","kcf","mcf"]
[null,null,null,null,null,null,"Kerosene","kWh","MWh","therms","kBtu","MBtu","GJ","cu m","l","gal","kGal","MGal","cf","ccf","kcf","mcf"]
[null,null,null,null,null,null,"Fuel Oil (No. 1)","kWh","MWh","therms","kBtu","MBtu","GJ","cu m","l","gal","kGal","MGal","cf","ccf","kcf","mcf"]
[null,null,null,null,null,null,"Fuel Oil (No. 2)","kWh","MWh","therms","kBtu","MBtu","GJ","cu m","l","gal","kGal","MGal","cf","ccf","kcf","mcf"]
[null,null,null,null,null,null,"Fuel Oil (No. 4)","kWh","MWh","therms","kBtu","MBtu","GJ","cu m","l","gal","kGal","MGal","cf","ccf","kcf","mcf"]
[null,null,null,null,null,null,"Fuel Oil (No. 5 & No. 6)","kWh","MWh","therms","kBtu","MBtu","GJ","cu m","l","gal","kGal","MGal","cf","ccf","kcf","mcf"]
[null,null,null,null,null,null,"Coal (anthracite)","kWh","MWh","therms","kBtu","MBtu","GJ","tons","Lbs","KLbs","MLbs","Tonnes (metric)"]
[null,null,null,null,null,null,"Coal (bituminous)","kWh","MWh","therms","kBtu","MBtu","GJ","tons","Lbs","KLbs","MLbs","Tonnes (metric)"]
[null,null,null,null,null,null,"Coke","kWh","MWh","therms","kBtu","MBtu","GJ","tons","Lbs","KLbs","MLbs","Tonnes (metric)"]
[null,null,null,null,null,null,"Diesel","kWh","MWh","therms","kBtu","MBtu","GJ","cu m","l","gal","kGal","MGal","cf","ccf","kcf","mcf"]
[null,null,null,null,null,null,"District Steam","kWh","MWh","therms","kBtu","MBtu","GJ","Lbs","KLbs","MLbs","kg"]
[null,null,null,null,null,null,"District Hot Water","kWh","MWh","therms","kBtu","MBtu","Gj"]
[null,null,null,null,null,null,"District Chilled Water (Electric Driven Chiller)","kWh","MWh","therms","kBtu","MBtu","Gj","ton hours"]
[null,null,null,null,null,null,"District Chilled Water (Absorption Chiller using Natural Gas)","kWh","MWh","therms","kBtu","MBtu","Gj","ton hours"]
[null,null,null,null,null,null,"District Chilled Water (Engine-Driven Chiller using Natural Gas)","kWh","MWh","therms","kBtu","MBtu","Gj","ton hours"]

{"sheet":"Naphthalene ","index":18,"n_rows":36,"n_cols":23,"rows_kept":36,"cut":false,"hidden":true,"merged":[[5,22,5,27]]}
["$",{"$f":"MID(CELL(\"filename\",A1),FIND(\"]\",CELL(\"filename\",A1))+1,256)","v":"Naphthalene "},null,{"$f":"B1","v":"Naphthalene "},"ARC",null,null,null,null,null,null,null,null,null,null,null,null,null,null,null,null,null,"Note : Please provide the required information for all the meters. Please note that if the platform already has data for the  overlapping dates, "]
["$","Meter name",null,"Naphthalene ",null,null,null,null,null,null,null,null,null,null,null,null,null,null,null,null,null,null,"the data from the template will not update the overlapping data. To  upload such readings, the data should be deleted from the platform by"]
["$","Unit of measurement",null," µg/m3",null,null,null,null,null,null,null,null,null,null,null,null,null,null,null,null,null,null,"clicking  the delete button next to those readings.  If the entire meter as to be updated, the better way is to delete the entire meter by clicking "]
[null,null,null,null,null,null,null,null,null,null,null,null,null,null,null,null,null,null,null,null,null,null,"the delete button next to those readings.  If the entire meter as to be updated, the better way"]
["$","Data Source",null,null,null,null,null,null,null,null,null,null,null,null,null,null,null,null,null,null,null,null,"the delete meter button under the details tab of the meter. For the date columns please follow the pattern MM-DD-YYYY either while copying the "]
[10,"Period Start Date (MM-DD-YYYY)","  Period End Date (MM-DD-YYYY)",{"$f":"CONCATENATE(\"Period Reading\n\",\"(\",D3,\")\")","v":"Period Reading\n( µg/m3)"},null,null,null,null,null,null,null,null,null,null,null,null,null,null,null,null,null,null,"data form external file or entering the data manaully within the ARC template to upload the data to the project. "]
[]
[]
[]
["A",null,null,null,null,null,null,null,null,null,null,null,null,null,null,null,null,null,null,null,null,"Other Fuels"]
[]
[]
[]
[]
[]
[]
[]
[]
[null,null,null,null,null,null,"Natural Gas","kWh","MWh","therms","kBtu","MBtu","GJ","cu m","l","gal","kGal","MGal","cf","ccf","kcf","mcf"]
[null,null,null,null,null,null,"Wood","kWh","MWh","therms","kBtu","MBtu","GJ","tons","Tonnes(metric)"]
[null,null,null,null,null,null,"Propane","kWh","MWh","therms","kBtu","MBtu","GJ","cu m","l","gal","kGal","MGal","cf","ccf","kcf","mcf"]
[null,null,null,null,null,null,"Liquid Propane","kWh","MWh","therms","kBtu","MBtu","GJ","cu m","l","gal","kGal","MGal","cf","ccf","kcf","mcf"]
[null,null,null,null,null,null,"Kerosene","kWh","MWh","therms","kBtu","MBtu","GJ","cu m","l","gal","kGal","MGal","cf","ccf","kcf","mcf"]
[null,null,null,null,null,null,"Fuel Oil (No. 1)","kWh","MWh","therms","kBtu","MBtu","GJ","cu m","l","gal","kGal","MGal","cf","ccf","kcf","mcf"]
[null,null,null,null,null,null,"Fuel Oil (No. 2)","kWh","MWh","therms","kBtu","MBtu","GJ","cu m","l","gal","kGal","MGal","cf","ccf","kcf","mcf"]
[null,null,null,null,null,null,"Fuel Oil (No. 4)","kWh","MWh","therms","kBtu","MBtu","GJ","cu m","l","gal","kGal","MGal","cf","ccf","kcf","mcf"]
[null,null,null,null,null,null,"Fuel Oil (No. 5 & No. 6)","kWh","MWh","therms","kBtu","MBtu","GJ","cu m","l","gal","kGal","MGal","cf","ccf","kcf","mcf"]
[null,null,null,null,null,null,"Coal (anthracite)","kWh","MWh","therms","kBtu","MBtu","GJ","tons","Lbs","KLbs","MLbs","Tonnes (metric)"]
[null,null,null,null,null,null,"Coal (bituminous)","kWh","MWh","therms","kBtu","MBtu","GJ","tons","Lbs","KLbs","MLbs","Tonnes (metric)"]
[null,null,null,null,null,null,"Coke","kWh","MWh","therms","kBtu","MBtu","GJ","tons","Lbs","KLbs","MLbs","Tonnes (metric)"]
[null,null,null,null,null,null,"Diesel","kWh","MWh","therms","kBtu","MBtu","GJ","cu m","l","gal","kGal","MGal","cf","ccf","kcf","mcf"]
[null,null,null,null,null,null,"District Steam","kWh","MWh","therms","kBtu","MBtu","GJ","Lbs","KLbs","MLbs","kg"]
[null,null,null,null,null,null,"District Hot Water","kWh","MWh","therms","kBtu","MBtu","Gj"]
[null,null,null,null,null,null,"District Chilled Water (Electric Driven Chiller)","kWh","MWh","therms","kBtu","MBtu","Gj","ton hours"]
[null,null,null,null,null,null,"District Chilled Water (Absorption Chiller using Natural Gas)","kWh","MWh","therms","kBtu","MBtu","Gj","ton hours"]
[null,null,null,null,null,null,"District Chilled Water (Engine-Driven Chiller using Natural Gas)","kWh","MWh","therms","kBtu","MBtu","Gj","ton hours"]

{"sheet":"Dichlorobenzene","index":19,"n_rows":36,"n_cols":23,"rows_kept":36,"cut":false,"hidden":true,"merged":[[5,22,5,27]]}
["$",{"$f":"MID(CELL(\"filename\",A1),FIND(\"]\",CELL(\"filename\",A1))+1,256)","v":"Dichlorobenzene"},null,{"$f":"B1","v":"Dichlorobenzene"},"ARC",null,null,null,null,null,null,null,null,null,null,null,null,null,null,null,null,null,"Note : Please provide the required information for all the meters. Please note that if the platform already has data for the  overlapping dates, "]
["$","Meter name",null,"Dichlorobenzene",null,null,null,null,null,null,null,null,null,null,null,null,null,null,null,null,null,null,"the data from the template will not update the overlapping data. To  upload such readings, the data should be deleted from the platform by"]
["$","Unit of measurement",null,"µg/m3",null,null,null,null,null,null,null,null,null,null,null,null,null,null,null,null,null,null,"clicking  the delete button next to those readings.  If the entire meter as to be updated, the better way is to delete the entire meter by clicking "]
[null,null,null,null,null,null,null,null,null,null,null,null,null,null,null,null,null,null,null,null,null,null,"the delete button next to those readings.  If the entire meter as to be updated, the better way"]
["$","Data Source",null,null,null,null,null,null,null,null,null,null,null,null,null,null,null,null,null,null,null,null,"the delete meter button under the details tab of the meter. For the date columns please follow the pattern MM-DD-YYYY either while copying the "]
[10,"Period Start Date (MM-DD-YYYY)"," Period End Date (MM-DD-YYYY)",{"$f":"CONCATENATE(\"Period Reading \n\",\"(\",D3,\")\")","v":"Period Reading \n(µg/m3)"},null,null,null,null,null,null,null,null,null,null,null,null,null,null,null,null,null,null,"data form external file or entering the data manaully within the ARC template to upload the data to the project. "]
[]
[]
[]
["A",null,null,null,null,null,null,null,null,null,null,null,null,null,null,null,null,null,null,null,null,"Other Fuels"]
[]
[]
[]
[]
[]
[]
[]
[]
[null,null,null,null,null,null,"Natural Gas","kWh","MWh","therms","kBtu","MBtu","GJ","cu m","l","gal","kGal","MGal","cf","ccf","kcf","mcf"]
[null,null,null,null,null,null,"Wood","kWh","MWh","therms","kBtu","MBtu","GJ","tons","Tonnes(metric)"]
[null,null,null,null,null,null,"Propane","kWh","MWh","therms","kBtu","MBtu","GJ","cu m","l","gal","kGal","MGal","cf","ccf","kcf","mcf"]
[null,null,null,null,null,null,"Liquid Propane","kWh","MWh","therms","kBtu","MBtu","GJ","cu m","l","gal","kGal","MGal","cf","ccf","kcf","mcf"]
[null,null,null,null,null,null,"Kerosene","kWh","MWh","therms","kBtu","MBtu","GJ","cu m","l","gal","kGal","MGal","cf","ccf","kcf","mcf"]
[null,null,null,null,null,null,"Fuel Oil (No. 1)","kWh","MWh","therms","kBtu","MBtu","GJ","cu m","l","gal","kGal","MGal","cf","ccf","kcf","mcf"]
[null,null,null,null,null,null,"Fuel Oil (No. 2)","kWh","MWh","therms","kBtu","MBtu","GJ","cu m","l","gal","kGal","MGal","cf","ccf","kcf","mcf"]
[null,null,null,null,null,null,"Fuel Oil (No. 4)","kWh","MWh","therms","kBtu","MBtu","GJ","cu m","l","gal","kGal","MGal","cf","ccf","kcf","mcf"]
[null,null,null,null,null,null,"Fuel Oil (No. 5 & No. 6)","kWh","MWh","therms","kBtu","MBtu","GJ","cu m","l","gal","kGal","MGal","cf","ccf","kcf","mcf"]
[null,null,null,null,null,null,"Coal (anthracite)","kWh","MWh","therms","kBtu","MBtu","GJ","tons","Lbs","KLbs","MLbs","Tonnes (metric)"]
[null,null,null,null,null,null,"Coal (bituminous)","kWh","MWh","therms","kBtu","MBtu","GJ","tons","Lbs","KLbs","MLbs","Tonnes (metric)"]
[null,null,null,null,null,null,"Coke","kWh","MWh","therms","kBtu","MBtu","GJ","tons","Lbs","KLbs","MLbs","Tonnes (metric)"]
[null,null,null,null,null,null,"Diesel","kWh","MWh","therms","kBtu","MBtu","GJ","cu m","l","gal","kGal","MGal","cf","ccf","kcf","mcf"]
[null,null,null,null,null,null,"District Steam","kWh","MWh","therms","kBtu","MBtu","GJ","Lbs","KLbs","MLbs","kg"]
[null,null,null,null,null,null,"District Hot Water","kWh","MWh","therms","kBtu","MBtu","Gj"]
[null,null,null,null,null,null,"District Chilled Water (Electric Driven Chiller)","kWh","MWh","therms","kBtu","MBtu","Gj","ton hours"]
[null,null,null,null,null,null,"District Chilled Water (Absorption Chiller using Natural Gas)","kWh","MWh","therms","kBtu","MBtu","Gj","ton hours"]
[null,null,null,null,null,null,"District Chilled Water (Engine-Driven Chiller using Natural Gas)","kWh","MWh","therms","kBtu","MBtu","Gj","ton hours"]

{"sheet":"Xylenes-total","index":20,"n_rows":36,"n_cols":23,"rows_kept":36,"cut":false,"hidden":true,"merged":[[5,22,5,27]]}
["$",{"$f":"MID(CELL(\"filename\",A1),FIND(\"]\",CELL(\"filename\",A1))+1,256)","v":"Xylenes-total"},null,{"$f":"B1","v":"Xylenes-total"},"ARC",null,null,null,null,null,null,null,null,null,null,null,null,null,null,null,null,null,"Note : Please provide the required information for all the meters. Please note that if the platform already has data for the  overlapping dates, "]
["$","Meter name",null,"Xylenes-total",null,null,null,null,null,null,null,null,null,null,null,null,null,null,null,null,null,null,"the data from the template will not update the overlapping data. To  upload such readings, the data should be deleted from the platform by"]
["$","Unit of measurement",null,"µg/m3",null,null,null,null,null,null,null,null,null,null,null,null,null,null,null,null,null,null,"clicking  the delete button next to those readings.  If the entire meter as to be updated, the better way is to delete the entire meter by clicking "]
[null,null,null,null,null,null,null,null,null,null,null,null,null,null,null,null,null,null,null,null,null,null,"the delete button next to those readings.  If the entire meter as to be updated, the better way"]
["$","Data Source",null,null,null,null,null,null,null,null,null,null,null,null,null,null,null,null,null,null,null,null,"the delete meter button under the details tab of the meter. For the date columns please follow the pattern MM-DD-YYYY either while copying the "]
[10,"Period Start Date (MM-DD-YYYY)"," Period End Date (MM-DD-YYYY)",{"$f":"CONCATENATE(\"Period Reading \n\",\"(\",D3,\")\")","v":"Period Reading \n(µg/m3)"},null,null,null,null,null,null,null,null,null,null,null,null,null,null,null,null,null,null,"data form external file or entering the data manaully within the ARC template to upload the data to the project. "]
[]
[]
[]
["A",null,null,null,null,null,null,null,null,null,null,null,null,null,null,null,null,null,null,null,null,"Other Fuels"]
[]
[]
[]
[]
[]
[]
[]
[]
[null,null,null,null,null,null,"Natural Gas","kWh","MWh","therms","kBtu","MBtu","GJ","cu m","l","gal","kGal","MGal","cf","ccf","kcf","mcf"]
[null,null,null,null,null,null,"Wood","kWh","MWh","therms","kBtu","MBtu","GJ","tons","Tonnes(metric)"]
[null,null,null,null,null,null,"Propane","kWh","MWh","therms","kBtu","MBtu","GJ","cu m","l","gal","kGal","MGal","cf","ccf","kcf","mcf"]
[null,null,null,null,null,null,"Liquid Propane","kWh","MWh","therms","kBtu","MBtu","GJ","cu m","l","gal","kGal","MGal","cf","ccf","kcf","mcf"]
[null,null,null,null,null,null,"Kerosene","kWh","MWh","therms","kBtu","MBtu","GJ","cu m","l","gal","kGal","MGal","cf","ccf","kcf","mcf"]
[null,null,null,null,null,null,"Fuel Oil (No. 1)","kWh","MWh","therms","kBtu","MBtu","GJ","cu m","l","gal","kGal","MGal","cf","ccf","kcf","mcf"]
[null,null,null,null,null,null,"Fuel Oil (No. 2)","kWh","MWh","therms","kBtu","MBtu","GJ","cu m","l","gal","kGal","MGal","cf","ccf","kcf","mcf"]
[null,null,null,null,null,null,"Fuel Oil (No. 4)","kWh","MWh","therms","kBtu","MBtu","GJ","cu m","l","gal","kGal","MGal","cf","ccf","kcf","mcf"]
[null,null,null,null,null,null,"Fuel Oil (No. 5 & No. 6)","kWh","MWh","therms","kBtu","MBtu","GJ","cu m","l","gal","kGal","MGal","cf","ccf","kcf","mcf"]
[null,null,null,null,null,null,"Coal (anthracite)","kWh","MWh","therms","kBtu","MBtu","GJ","tons","Lbs","KLbs","MLbs","Tonnes (metric)"]
[null,null,null,null,null,null,"Coal (bituminous)","kWh","MWh","therms","kBtu","MBtu","GJ","tons","Lbs","KLbs","MLbs","Tonnes (metric)"]
[null,null,null,null,null,null,"Coke","kWh","MWh","therms","kBtu","MBtu","GJ","tons","Lbs","KLbs","MLbs","Tonnes (metric)"]
[null,null,null,null,null,null,"Diesel","kWh","MWh","therms","kBtu","MBtu","GJ","cu m","l","gal","kGal","MGal","cf","ccf","kcf","mcf"]
[null,null,null,null,null,null,"District Steam","kWh","MWh","therms","kBtu","MBtu","GJ","Lbs","KLbs","MLbs","kg"]
[null,null,null,null,null,null,"District Hot Water","kWh","MWh","therms","kBtu","MBtu","Gj"]
[null,null,null,null,null,null,"District Chilled Water (Electric Driven Chiller)","kWh","MWh","therms","kBtu","MBtu","Gj","ton hours"]
[null,null,null,null,null,null,"District Chilled Water (Absorption Chiller using Natural Gas)","kWh","MWh","therms","kBtu","MBtu","Gj","ton hours"]
[null,null,null,null,null,null,"District Chilled Water (Engine-Driven Chiller using Natural Gas)","kWh","MWh","therms","kBtu","MBtu","Gj","ton hours"]

{"sheet":"Formaldehyde","index":21,"n_rows":36,"n_cols":23,"rows_kept":36,"cut":false,"hidden":true,"merged":[[5,22,5,27]]}
["$",{"$f":"MID(CELL(\"filename\",A1),FIND(\"]\",CELL(\"filename\",A1))+1,256)","v":"Formaldehyde"},null,{"$f":"B1","v":"Formaldehyde"},"ARC",null,null,null,null,null,null,null,null,null,null,null,null,null,null,null,null,null,"Note : Please provide the required information for all the meters. Please note that if the platform already has data for the  overlapping dates, "]
["$","Meter name",null,"Formaldehyde",null,null,null,null,null,null,null,null,null,null,null,null,null,null,null,null,null,null,"the data from the template will not update the overlapping data. To  upload such readings, the data should be deleted from the platform by"]
["$","Unit of measurement",null,"ppb",null,null,null,null,null,null,null,null,null,null,null,null,null,null,null,null,null,null,"clicking  the delete button next to those readings.  If the entire meter as to be updated, the better way is to delete the entire meter by clicking "]
[null,null,null,null,null,null,null,null,null,null,null,null,null,null,null,null,null,null,null,null,null,null,"the delete button next to those readings.  If the entire meter as to be updated, the better way"]
["$","Data Source",null,null,null,null,null,null,null,null,null,null,null,null,null,null,null,null,null,null,null,null,"the delete meter button under the details tab of the meter. For the date columns please follow the pattern MM-DD-YYYY either while copying the "]
[10,"Period Start Date (MM-DD-YYYY)"," Period End Date (MM-DD-YYYY)",{"$f":"CONCATENATE(\"Period Reading\n\",\"(\",D3,\")\")","v":"Period Reading\n(ppb)"},null,null,null,null,null,null,null,null,null,null,null,null,null,null,null,null,null,null,"data form external file or entering the data manaully within the ARC template to upload the data to the project. "]
[null,null,null,null,null,null,null,"µg/m3"]
[null,null,null,null,null,null,null,"ppb"]
[]
["A",null,null,null,null,null,null,null,null,null,null,null,null,null,null,null,null,null,null,null,null,"Other Fuels"]
[]
[]
[]
[]
[]
[]
[]
[]
[null,null,null,null,null,null,"Natural Gas","kWh","MWh","therms","kBtu","MBtu","GJ","cu m","l","gal","kGal","MGal","cf","ccf","kcf","mcf"]
[null,null,null,null,null,null,"Wood","kWh","MWh","therms","kBtu","MBtu","GJ","tons","Tonnes(metric)"]
[null,null,null,null,null,null,"Propane","kWh","MWh","therms","kBtu","MBtu","GJ","cu m","l","gal","kGal","MGal","cf","ccf","kcf","mcf"]
[null,null,null,null,null,null,"Liquid Propane","kWh","MWh","therms","kBtu","MBtu","GJ","cu m","l","gal","kGal","MGal","cf","ccf","kcf","mcf"]
[null,null,null,null,null,null,"Kerosene","kWh","MWh","therms","kBtu","MBtu","GJ","cu m","l","gal","kGal","MGal","cf","ccf","kcf","mcf"]
[null,null,null,null,null,null,"Fuel Oil (No. 1)","kWh","MWh","therms","kBtu","MBtu","GJ","cu m","l","gal","kGal","MGal","cf","ccf","kcf","mcf"]
[null,null,null,null,null,null,"Fuel Oil (No. 2)","kWh","MWh","therms","kBtu","MBtu","GJ","cu m","l","gal","kGal","MGal","cf","ccf","kcf","mcf"]
[null,null,null,null,null,null,"Fuel Oil (No. 4)","kWh","MWh","therms","kBtu","MBtu","GJ","cu m","l","gal","kGal","MGal","cf","ccf","kcf","mcf"]
[null,null,null,null,null,null,"Fuel Oil (No. 5 & No. 6)","kWh","MWh","therms","kBtu","MBtu","GJ","cu m","l","gal","kGal","MGal","cf","ccf","kcf","mcf"]
[null,null,null,null,null,null,"Coal (anthracite)","kWh","MWh","therms","kBtu","MBtu","GJ","tons","Lbs","KLbs","MLbs","Tonnes (metric)"]
[null,null,null,null,null,null,"Coal (bituminous)","kWh","MWh","therms","kBtu","MBtu","GJ","tons","Lbs","KLbs","MLbs","Tonnes (metric)"]
[null,null,null,null,null,null,"Coke","kWh","MWh","therms","kBtu","MBtu","GJ","tons","Lbs","KLbs","MLbs","Tonnes (metric)"]
[null,null,null,null,null,null,"Diesel","kWh","MWh","therms","kBtu","MBtu","GJ","cu m","l","gal","kGal","MGal","cf","ccf","kcf","mcf"]
[null,null,null,null,null,null,"District Steam","kWh","MWh","therms","kBtu","MBtu","GJ","Lbs","KLbs","MLbs","kg"]
[null,null,null,null,null,null,"District Hot Water","kWh","MWh","therms","kBtu","MBtu","Gj"]
[null,null,null,null,null,null,"District Chilled Water (Electric Driven Chiller)","kWh","MWh","therms","kBtu","MBtu","Gj","ton hours"]
[null,null,null,null,null,null,"District Chilled Water (Absorption Chiller using Natural Gas)","kWh","MWh","therms","kBtu","MBtu","Gj","ton hours"]
[null,null,null,null,null,null,"District Chilled Water (Engine-Driven Chiller using Natural Gas)","kWh","MWh","therms","kBtu","MBtu","Gj","ton hours"]